ServiceArea,Service,ResponsibleUnit,ExpensesType,Narrative,DatePaid,Invoice,TransactionReference,NetAmount,CapitalRevenue,SupplierID,SupplierName,Postcode,UnrecoveredVAT
Director Of Environment,Open Spaces,Amenity Greens,R&M Grounds - Treework,PEST CONTROL - HUTTON POPLARS,12/08/2022,REDACTED INVOICE NUMBER,163456,880,Revenue,29,A1 Environmental Pest Control,CM13 1LH,0
Director Of Environment,Depot Management & Admin,Depot Management & Admin,R&M Bldgs - General,PEST CONTROL - WARLEY DEPOT,16/08/2022,REDACTED INVOICE NUMBER,163720,75,Revenue,29,A1 Environmental Pest Control,CM13 1LH,0
Director Of Environment,Open Spaces,Recreation Areas,Purchases - Materials,PEST CONTROL - KGPF PARK,16/08/2022,REDACTED INVOICE NUMBER,163719,440,Revenue,29,A1 Environmental Pest Control,CM13 1LH,0
Director Of Environment,Depot Management & Admin,Depot Management & Admin,Plant & Mcy - Repairs & Maint,PARTS,26/08/2022,REDACTED INVOICE NUMBER,164217,145,Revenue,31,A1 Pressure Washers Ltd,IP5 3RH,0
Director Of Environment,"Communities, Health & Leisure",Health & Wellbeing,Catering - Purchases,CATERING,12/08/2022,REDACTED INVOICE NUMBER,163744,190,Revenue,35,Ab Fab Catering Solutions,CM15 0HE,0
Director Of Environment,Grounds Maintenance,Grounds Maintenance,Vehicle Hire,TRUCK HIRE,05/08/2022,REDACTED INVOICE NUMBER,161516,145,Revenue,1257,Ahl Fleet,RM14 3NX,0
Director Of Environment,Grounds Maintenance,Grounds Maintenance,Vehicle Hire,TRUCK HIRE,05/08/2022,REDACTED INVOICE NUMBER,162067,145,Revenue,1257,Ahl Fleet,RM14 3NX,0
Director Of Environment,Grounds Maintenance,Grounds Maintenance,Vehicle Hire,TRUCK HIRE,05/08/2022,REDACTED INVOICE NUMBER,162677,145,Revenue,1257,Ahl Fleet,RM14 3NX,0
Director Of Environment,Grounds Maintenance,Grounds Maintenance,Vehicle Hire,TRUCK HIRE,05/08/2022,REDACTED INVOICE NUMBER,162437,145,Revenue,1257,Ahl Fleet,RM14 3NX,0
Director Of Environment,Grounds Maintenance,Grounds Maintenance,Vehicle Hire,TRUCK HIRE,09/08/2022,REDACTED INVOICE NUMBER,162945,145,Revenue,1257,Ahl Fleet,RM14 3NX,0
Director Of Environment,Grounds Maintenance,Grounds Maintenance,Vehicle Hire,TRUCK HIRE,16/08/2022,REDACTED INVOICE NUMBER,163443,145,Revenue,1257,Ahl Fleet,RM14 3NX,0
Director Of Environment,Grounds Maintenance,Grounds Maintenance,Vehicle Hire,TRUCK HIRE,23/08/2022,REDACTED INVOICE NUMBER,163647,145,Revenue,1257,Ahl Fleet,RM14 3NX,0
Director Of Environment,Grounds Maintenance,Grounds Maintenance,Vehicle Hire,TRUCK HIRE,30/08/2022,REDACTED INVOICE NUMBER,163845,145,Revenue,1257,Ahl Fleet,RM14 3NX,0
Director Of Environment,Parking,Parking Services,Bank Charges,TRANSACTION CHARGES - JULY '22,12/08/2022,REDACTED INVOICE NUMBER,163849,227.46,Revenue,28063,Aib Merchant Services (Pg Payments),.,0
Capex Director Of Environment,Corporate Services,King George'S Redevelopment,Contracted Services,KGPF CONSTRUCTION VALUATION NO,12/08/2022,REDACTED INVOICE NUMBER,163903,224051.09,Capital,27165,Alliance Leisure Services Limited,BS32 4AQ,0
Capex Director Of Environment,Corporate Services,King George'S Redevelopment,Contracted Services,KGPF CONSTRUCTION VALUATION NO,16/08/2022,REDACTED INVOICE NUMBER,163902,103486.75,Capital,27165,Alliance Leisure Services Limited,BS32 4AQ,0
Hra Expenditure,Supervision And Management,Rent Collection & Recovery,Credit Card Charges,PAYMENT PROCESSING,19/08/2022,REDACTED INVOICE NUMBER,163649,136.56,Revenue,132,Allpay.Net Limited,HR1 3SE,0
Hra Expenditure,Supervision And Management,Rent Collection & Recovery,Credit Card Charges,PAYMENT PROCESSING,19/08/2022,REDACTED INVOICE NUMBER,163653,476.44,Revenue,132,Allpay.Net Limited,HR1 3SE,0
Balance Sheet,Balance Sheet,Balance Sheet,Contractor Retentions Account,FINAL RETENTION,09/08/2022,REDACTED INVOICE NUMBER,163346,16352.19,Revenue,28374,Amelio Utilities (Gloucester) Ltd,GL1 4JJ,0
Director Of Environment,"Communities, Health & Leisure",Family Fun Days,Contracted Services,FAMILY FUN DAY,05/08/2022,REDACTED INVOICE NUMBER,163711,300,Revenue,225867P,Applause Rural Touring,.,0
Chief Executive,Executive Board,Senior Leadership Team,Project Management Support,Professional Services,19/08/2022,REDACTED INVOICE NUMBER,164157,2000,Revenue,29014,Apple Thatch Property Consultants Ltd,TS18 1LS,0
Capex Director Of Housing,Housing - Affordable Housing,Coram Green,Enhancements,PROFESSIONAL SERVICES,30/08/2022,REDACTED INVOICE NUMBER,164186,1150,Capital,27906,Arcus Consulting Llp,M33 7AR,0
Director Of Planning & Economy,Planning Development Managemt,Planning Development Managemt,Other Fees & Service,De Rougemont Manor Great Warley,19/08/2022,REDACTED INVOICE NUMBER,163324,603,Revenue,28277,Ark Consultancy Ltd,B18 6DS,0
Director Of Planning & Economy,Planning Development Managemt,Planning Development Managemt,Other Fees & Service,Westbury Road Carpark,19/08/2022,REDACTED INVOICE NUMBER,163323,3000,Revenue,28277,Ark Consultancy Ltd,B18 6DS,0
Capex Director Of Environment,Corporate Services,King George'S Redevelopment,Contracted Services,KING GEORGES PAVILION DEVELOPMENT,30/08/2022,REDACTED INVOICE NUMBER,163954,1430,Capital,28277,Ark Consultancy Ltd,B18 6DS,0
Capex Director Of Environment,Other Environmental Services,Disabled Facilities Grant,Grants - General,DISABLED FACILITIES GRANT,09/08/2022,REDACTED INVOICE NUMBER,162814,1709.6,Capital,28621,Ascalon Building Services,SS14 3BB,0
Director Of Environment,Open Spaces,Recreation Areas,R&M Grounds - Treework,EMERGENCY TREE REMOVAL,26/08/2022,REDACTED INVOICE NUMBER,162692,890,Revenue,24920,Ascending Arbs Tree Services Ltd,CM4 0BL,0
Director Of Environment,Open Spaces,Recreation Areas,R&M Grounds - Treework,TREE WORKS - SHENFIELD COMMON,26/08/2022,REDACTED INVOICE NUMBER,162691,1600,Revenue,24920,Ascending Arbs Tree Services Ltd,CM4 0BL,0
Director Corporate Resources,Asset Management,Asset Management,R&M Bldgs - General,POTHOLE REPAIRS,30/08/2022,REDACTED INVOICE NUMBER,163651,585,Revenue,220,Ashe Green Civil Engineers Ltd,CM3 3PF,0
Director Of Environment,Parking,Parking Services,Equipment & Tools - R&M,POTHOLE REPAIRS,30/08/2022,REDACTED INVOICE NUMBER,163650,585,Revenue,220,Ashe Green Civil Engineers Ltd,CM3 3PF,0
Director Of Environment,Vehicle Fleet Management,Vehicle Fleet Management,Vehicle R&M - External,REPAIRS,26/08/2022,REDACTED INVOICE NUMBER,163334,340,Revenue,26506,Asm Truck Diagnostics Ltd,CM13 3BH,0
Director Of Environment,Vehicle Fleet Management,Vehicle Fleet Management,Vehicle R&M - External,TECHNICIAN COVER,30/08/2022,REDACTED INVOICE NUMBER,163965,7480,Revenue,26506,Asm Truck Diagnostics Ltd,CM13 3BH,0
Director Of Environment,Vehicle Fleet Management,Vehicle Fleet Management,Vehicle R&M - External,VEHICLE REPAIRS - VARIOUS,30/08/2022,REDACTED INVOICE NUMBER,163893,60,Revenue,26506,Asm Truck Diagnostics Ltd,CM13 3BH,0
Director Corporate Resources,Human Resources,Human Resources,Training Expenses,ACCOMMODATION - ELECTIONS SEMINAR,05/08/2022,REDACTED INVOICE NUMBER,163655,145,Revenue,232,Association Of Electoral Administrators,L16 5HH,0
Capex Director Of Housing,Housing - Hra,Housing Stock -Health & Safety,Enhancements,INTERIM VALUATION - JUNIPER COURT,02/08/2022,REDACTED INVOICE NUMBER,162751,10198.96,Capital,27759,Axis Europe,E15 4PN,0
Capex Director Of Housing,Housing - Affordable Housing,Brookfield Project,Enhancements,COMMUNAL - BBCOM,05/08/2022,REDACTED INVOICE NUMBER,162539,3366.09,Capital,27759,Axis Europe,E15 4PN,0
Capex Director Of Housing,Housing - Hra,Boiler/ Heating  Replacement,Enhancements,PPP EXCLUSIONS - BBREX,05/08/2022,REDACTED INVOICE NUMBER,162538,1584.12,Capital,27759,Axis Europe,E15 4PN,0
Capex Director Of Housing,Housing - Hra,Disabled Adaptations,Enhancements,PPP EXCLUSIONS - BBREX,05/08/2022,REDACTED INVOICE NUMBER,162538,30396.78,Capital,27759,Axis Europe,E15 4PN,0
Capex Director Of Housing,Housing - Hra,Housing Stock Bathrooms,Enhancements,Bathroom Wet Rooms June,05/08/2022,REDACTED INVOICE NUMBER,162537,49577.33,Capital,27759,Axis Europe,E15 4PN,0
Capex Director Of Housing,Housing - Hra,Housing Stock Kitchens,Enhancements,June Valuation,05/08/2022,REDACTED INVOICE NUMBER,162532,61221.52,Capital,27759,Axis Europe,E15 4PN,0
Capex Director Of Housing,Housing - Hra,Housing Stock - Water,Enhancements,COMMUNAL - BBCOM,05/08/2022,REDACTED INVOICE NUMBER,162539,978.18,Capital,27759,Axis Europe,E15 4PN,0
Capex Director Of Housing,Housing - Hra,Hsg Stock - Security/ Boundary,Enhancements,COMMUNAL - BBCOM,05/08/2022,REDACTED INVOICE NUMBER,162539,5544.62,Capital,27759,Axis Europe,E15 4PN,0
Capex Director Of Housing,Housing - Hra,Hsg Stock - Security/ Boundary,Enhancements,PPP EXCLUSIONS - BBREX,05/08/2022,REDACTED INVOICE NUMBER,162538,12579.49,Capital,27759,Axis Europe,E15 4PN,0
Capex Director Of Housing,Housing - Hra,Major Voids,Enhancements,APPLICATION 37 - JUNE22,05/08/2022,REDACTED INVOICE NUMBER,162666,33410.99,Capital,27759,Axis Europe,E15 4PN,0
Hra Expenditure,Repairs And Maintenance,Responsive Repairs Management,R&M Bldgs - Asbestos,PPP EXCLUSIONS - BBREX,05/08/2022,REDACTED INVOICE NUMBER,162538,955.58,Revenue,27759,Axis Europe,E15 4PN,0
Hra Expenditure,Repairs And Maintenance,Responsive Repairs Management,R&M Bldgs - General,PPP EXCLUSIONS - BBREX,05/08/2022,REDACTED INVOICE NUMBER,162538,23387.3,Revenue,27759,Axis Europe,E15 4PN,0
Hra Expenditure,Repairs And Maintenance,Responsive Repairs Management,R&M Fix & Fit - Communal,COMMUNAL - BBCOM,05/08/2022,REDACTED INVOICE NUMBER,162539,10760.81,Revenue,27759,Axis Europe,E15 4PN,0
Hra Expenditure,Repairs And Maintenance,Responsive Repairs Management,R&M Fix & Fit - Electrical,PPP EXCLUSIONS - BBREX,05/08/2022,REDACTED INVOICE NUMBER,162538,1629.01,Revenue,27759,Axis Europe,E15 4PN,0
Hra Expenditure,Repairs And Maintenance,Responsive Void Repairs,R&M Bldgs - Asbestos,APPLICATION 37 - JUNE22,05/08/2022,REDACTED INVOICE NUMBER,162666,259.4,Revenue,27759,Axis Europe,E15 4PN,0
Hra Expenditure,Repairs And Maintenance,Responsive Void Repairs,R&M Bldgs - General,APPLICATION 37 - JUNE22,05/08/2022,REDACTED INVOICE NUMBER,162666,30621.54,Revenue,27759,Axis Europe,E15 4PN,0
Hra Expenditure,Repairs And Maintenance,Responsive Void Repairs,R&M Bldgs - General,PPP EXCLUSIONS - BBREX,05/08/2022,REDACTED INVOICE NUMBER,162538,76.58,Revenue,27759,Axis Europe,E15 4PN,0
Hra Expenditure,Repairs And Maintenance,Responsive Void Repairs,R&M Bldgs - Ppp,APPLICATION 37 - JUNE22,05/08/2022,REDACTED INVOICE NUMBER,162666,19149.89,Revenue,27759,Axis Europe,E15 4PN,0
Hra Expenditure,Special Services,Waste Collection,Waste Disposal,COMMUNAL - BBCOM,05/08/2022,REDACTED INVOICE NUMBER,162539,1577.08,Revenue,27759,Axis Europe,E15 4PN,0
Hra Expenditure,Special Services,Waste Collection,Waste Disposal,PPP EXCLUSIONS - BBREX,05/08/2022,REDACTED INVOICE NUMBER,162538,58.62,Revenue,27759,Axis Europe,E15 4PN,0
Hra Expenditure,Repairs And Maintenance,Planned Maintenance,R&M Fix & Fit - Gas Extra Ppp,GAS SERVICING - JULY 22,12/08/2022,REDACTED INVOICE NUMBER,162757,24864.03,Revenue,27759,Axis Europe,E15 4PN,0
Hra Expenditure,Repairs And Maintenance,Planned Maintenance,R&M Fix & Fit - Gas Repairs,COMMUNAL HEATING - JULY 22,12/08/2022,REDACTED INVOICE NUMBER,162760,3251.93,Revenue,27759,Axis Europe,E15 4PN,0
Hra Expenditure,Repairs And Maintenance,Planned Maintenance,R&M Fix & Fit - Lifts,CYCLICAL SERVICING JULY 22,12/08/2022,REDACTED INVOICE NUMBER,162758,636.48,Revenue,27759,Axis Europe,E15 4PN,0
Hra Expenditure,Repairs And Maintenance,Planned Maintenance,R&M Fix & Fit - Lifts,CYCLICAL SERVICING JULY 22,12/08/2022,REDACTED INVOICE NUMBER,162759,618.79,Revenue,27759,Axis Europe,E15 4PN,0
Hra Expenditure,Repairs And Maintenance,Responsive Repairs Management,R&M Bldgs - General,PPG EXCLUSIONS - BBGRX,12/08/2022,REDACTED INVOICE NUMBER,162803,139.01,Revenue,27759,Axis Europe,E15 4PN,0
Hra Expenditure,Repairs And Maintenance,Responsive Repairs Management,R&M Bldgs - Ppp,PPG GARAGES - JUL '22,12/08/2022,REDACTED INVOICE NUMBER,162756,1535.67,Revenue,27759,Axis Europe,E15 4PN,0
Hra Expenditure,Repairs And Maintenance,Responsive Repairs Management,R&M Bldgs - Ppp,PPP - JULY 22,12/08/2022,REDACTED INVOICE NUMBER,162755,74794.86,Revenue,27759,Axis Europe,E15 4PN,0
Hra Expenditure,Special Services,Waste Collection,Waste Disposal,PPG EXCLUSIONS - BBGRX,12/08/2022,REDACTED INVOICE NUMBER,162803,2398.09,Revenue,27759,Axis Europe,E15 4PN,0
Capex Director Of Housing,Housing - Hra,Housing Stock -Health & Safety,Enhancements,INTERIM VALUATION - JUN '22,19/08/2022,REDACTED INVOICE NUMBER,163364,81933.44,Capital,27759,Axis Europe,E15 4PN,0
Capex Director Of Housing,Housing - Hra,Boiler/ Heating  Replacement,Enhancements,COMMERCIAL GAS - JUL '22,26/08/2022,REDACTED INVOICE NUMBER,163474,4409.97,Capital,27759,Axis Europe,E15 4PN,0
Capex Director Of Housing,Housing - Hra,Housing Stock -Health & Safety,Enhancements,INTERIM VALUATION. 1-16 TOWER COURT,26/08/2022,REDACTED INVOICE NUMBER,164537,4354.8,Capital,27759,Axis Europe,E15 4PN,0
Capex Director Of Housing,Housing - Hra,Housing Stock Re-Roofing,Enhancements,VALUATION - JUL '22,26/08/2022,REDACTED INVOICE NUMBER,163473,35417.57,Capital,27759,Axis Europe,E15 4PN,0
Capex Director Of Housing,Housing - Hra,Housing Stock Rewiring,Enhancements,EICR - JUL '22,26/08/2022,REDACTED INVOICE NUMBER,163472,27263.05,Capital,27759,Axis Europe,E15 4PN,0
Hra Expenditure,Repairs And Maintenance,Responsive Repairs Management,R&M Fix & Fit - Electrical,EICR - JUL '22,26/08/2022,REDACTED INVOICE NUMBER,163472,5430.15,Revenue,27759,Axis Europe,E15 4PN,0
Hra Expenditure,Repairs And Maintenance,Responsive Repairs Management,R&M Fix & Fit - Gas Repairs,COMMERCIAL GAS - JUL '22,26/08/2022,REDACTED INVOICE NUMBER,163474,379.48,Revenue,27759,Axis Europe,E15 4PN,0
Hra Expenditure,Repairs And Maintenance,Responsive Repairs Management,R&M Fix & Fit - Gas Repairs,GAS EXCLUSIONS - JUL '22,26/08/2022,REDACTED INVOICE NUMBER,163471,1203.19,Revenue,27759,Axis Europe,E15 4PN,0
Capex Director Of Housing,Housing - Affordable Housing,Brookfield Project,Enhancements,COMMUNAL - JUL '22,30/08/2022,REDACTED INVOICE NUMBER,163693,4790.21,Capital,27759,Axis Europe,E15 4PN,0
Capex Director Of Housing,Housing - Affordable Housing,Brookfield Project,Enhancements,PPP EXCLUSIONS - JUL '22,30/08/2022,REDACTED INVOICE NUMBER,163694,118.2,Capital,27759,Axis Europe,E15 4PN,0
Capex Director Of Housing,Housing - Hra,Boiler/ Heating  Replacement,Enhancements,BOILER INSTALLS - JUL '22,30/08/2022,REDACTED INVOICE NUMBER,163687,30727.02,Capital,27759,Axis Europe,E15 4PN,0
Capex Director Of Housing,Housing - Hra,Boiler/ Heating  Replacement,Enhancements,PPP EXCLUSIONS - JUL '22,30/08/2022,REDACTED INVOICE NUMBER,163694,4319.48,Capital,27759,Axis Europe,E15 4PN,0
Capex Director Of Housing,Housing - Hra,Disabled Adaptations,Enhancements,PPP EXCLUSIONS - JUL '22,30/08/2022,REDACTED INVOICE NUMBER,163694,23196.12,Capital,27759,Axis Europe,E15 4PN,0
Capex Director Of Housing,Housing - Hra,Housing Stock Bathrooms,Enhancements,BATHROOMM VALUATION - JUL '22,30/08/2022,REDACTED INVOICE NUMBER,163710,21828.64,Capital,27759,Axis Europe,E15 4PN,0
Capex Director Of Housing,Housing - Hra,Housing Stock - Doors,Enhancements,PPP EXCLUSIONS - JUL '22,30/08/2022,REDACTED INVOICE NUMBER,163694,1028.62,Capital,27759,Axis Europe,E15 4PN,0
Capex Director Of Housing,Housing - Hra,Housing Stock -Health & Safety,Enhancements,PPP EXCLUSIONS - JUL '22,30/08/2022,REDACTED INVOICE NUMBER,163694,4291.41,Capital,27759,Axis Europe,E15 4PN,0
Capex Director Of Housing,Housing - Hra,Housing Stock Kitchens,Enhancements,KITCHEN JUNE VALUATION,30/08/2022,REDACTED INVOICE NUMBER,163685,40374.82,Capital,27759,Axis Europe,E15 4PN,0
Capex Director Of Housing,Housing - Hra,Housing Stock - Lifts,Enhancements,COMMUNAL - JUL '22,30/08/2022,REDACTED INVOICE NUMBER,163693,5478.91,Capital,27759,Axis Europe,E15 4PN,0
Capex Director Of Housing,Housing - Hra,Housing Stock Re-Roofing,Enhancements,COMMUNAL - JUL '22,30/08/2022,REDACTED INVOICE NUMBER,163693,2516.55,Capital,27759,Axis Europe,E15 4PN,0
Capex Director Of Housing,Housing - Hra,Housing Stock Re-Roofing,Enhancements,ROOF REPLACEMENT,30/08/2022,REDACTED INVOICE NUMBER,163692,116433.37,Capital,27759,Axis Europe,E15 4PN,0
Capex Director Of Housing,Housing - Hra,Housing Stock Rewiring,Enhancements,PPP EXCLUSIONS - JUL '22,30/08/2022,REDACTED INVOICE NUMBER,163694,338.6,Capital,27759,Axis Europe,E15 4PN,0
Capex Director Of Housing,Housing - Hra,Housing Stock - Water,Enhancements,PPP EXCLUSIONS - JUL '22,30/08/2022,REDACTED INVOICE NUMBER,163694,1668.66,Capital,27759,Axis Europe,E15 4PN,0
Capex Director Of Housing,Housing - Hra,Hsg Stock - Security/ Boundary,Enhancements,COMMUNAL - JUL '22,30/08/2022,REDACTED INVOICE NUMBER,163693,3229.26,Capital,27759,Axis Europe,E15 4PN,0
Capex Director Of Housing,Housing - Hra,Hsg Stock - Security/ Boundary,Enhancements,PPP EXCLUSIONS - JUL '22,30/08/2022,REDACTED INVOICE NUMBER,163694,13746.68,Capital,27759,Axis Europe,E15 4PN,0
Capex Director Of Housing,Housing - Hra,Major Voids,Enhancements,VOIDS - JUL '22,30/08/2022,REDACTED INVOICE NUMBER,163696,23171.11,Capital,27759,Axis Europe,E15 4PN,0
Hra Expenditure,Repairs And Maintenance,Responsive Repairs Management,R&M Bldgs - General,PPP EXCLUSIONS - JUL '22,30/08/2022,REDACTED INVOICE NUMBER,163694,26170.88,Revenue,27759,Axis Europe,E15 4PN,0
Hra Expenditure,Repairs And Maintenance,Responsive Repairs Management,R&M Fix & Fit - Communal,COMMUNAL - JUL '22,30/08/2022,REDACTED INVOICE NUMBER,163693,11391.62,Revenue,27759,Axis Europe,E15 4PN,0
Hra Expenditure,Repairs And Maintenance,Responsive Repairs Management,R&M Fix & Fit - Electrical,COMMUNAL - JUL '22,30/08/2022,REDACTED INVOICE NUMBER,163693,2017.29,Revenue,27759,Axis Europe,E15 4PN,0
Hra Expenditure,Repairs And Maintenance,Responsive Void Repairs,R&M Bldgs - General,PPP EXCLUSIONS - JUL '22,30/08/2022,REDACTED INVOICE NUMBER,163694,195.32,Revenue,27759,Axis Europe,E15 4PN,0
Hra Expenditure,Repairs And Maintenance,Responsive Void Repairs,R&M Bldgs - General,VOIDS - JUL '22,30/08/2022,REDACTED INVOICE NUMBER,163696,24130.69,Revenue,27759,Axis Europe,E15 4PN,0
Hra Expenditure,Repairs And Maintenance,Responsive Void Repairs,R&M Bldgs - Ppp,VOIDS - JUL '22,30/08/2022,REDACTED INVOICE NUMBER,163696,9753.13,Revenue,27759,Axis Europe,E15 4PN,0
Hra Expenditure,Special Services,Waste Collection,Waste Disposal,PPP EXCLUSIONS - JUL '22,30/08/2022,REDACTED INVOICE NUMBER,163694,591.41,Revenue,27759,Axis Europe,E15 4PN,0
Capex Director Of Housing,Housing - Hra,Balconies,Enhancements,COLET ROAD BALCONIES,26/08/2022,REDACTED INVOICE NUMBER,163444,8995.83,Capital,28436,Baily Garner Llp,SE9 5DY,0
Capex Director Of Housing,Housing - Affordable Housing,Brookfield Project,Enhancements,fees incurred,16/08/2022,REDACTED INVOICE NUMBER,163987,2500,Capital,305,Barton Willmore,RG1 3BE,0
Capex Director Of Housing,Housing - Affordable Housing,Brookfield Project,Enhancements,ENGAGEMENT SERVICES - BROOKFIELD CLOSE,26/08/2022,REDACTED INVOICE NUMBER,163704,2578,Capital,305,Barton Willmore,RG1 3BE,0
Capex Director Of Housing,Housing - Affordable Housing,Harewood Rd Dev,Enhancements,COMMUNITY ENGAGEMENT SERVICES,26/08/2022,REDACTED INVOICE NUMBER,163691,1012.57,Capital,305,Barton Willmore,RG1 3BE,0
Director Corporate Resources,Council Tax & Nndr,Council Tax Discounts,Contributions,C.TAX - SINGLE PERSON DISCOUNT,02/08/2022,REDACTED INVOICE NUMBER,163487,8604,Revenue,306,Basildon Borough Council,SS14 0DF,0
Director Corporate Resources,Council Tax & Nndr,Council Tax Collection,Software Support & Maintenance,REIMBURSEMENT - ENERGY REBATE MODULE,05/08/2022,REDACTED INVOICE NUMBER,163479,7116,Revenue,306,Basildon Borough Council,SS14 0DF,0
Director Corporate Resources,Council Tax & Nndr,Nndr Collection,Software Support & Maintenance,REIMBURSEMENT - IT COSTS,05/08/2022,REDACTED INVOICE NUMBER,163480,2440,Revenue,306,Basildon Borough Council,SS14 0DF,0
Director Corporate Resources,Council Tax & Nndr,Council Tax & Nndr Team,Contracted Services,REVS & BENS SERVICE CHARGE,16/08/2022,REDACTED INVOICE NUMBER,163751,57768.26,Revenue,306,Basildon Borough Council,SS14 0DF,0
Director Corporate Resources,Revs & Bens Customer Support,Revenue Support,Contracted Services,REVS & BENS SERVICE CHARGE,16/08/2022,REDACTED INVOICE NUMBER,163751,34660.96,Revenue,306,Basildon Borough Council,SS14 0DF,0
Capex Director Of C Resources,Asset Management,Asset Management Strategy,R&M Bldgs - General,FURNITURE,30/08/2022,REDACTED INVOICE NUMBER,163610,2408.57,Capital,23820,Bates Office Services Limited,ME2 2LS,0
Director Of Law & Governance,Corporate Support,Corporate Support,Stationery - General,RUBBER BANDS,30/08/2022,REDACTED INVOICE NUMBER,162483,-71.94,Revenue,23820,Bates Office Services Limited,ME2 2LS,0
Director Of Law & Governance,Corporate Support,Corporate Support,Stationery - General,RUBBER BANDS,30/08/2022,REDACTED INVOICE NUMBER,162657,71.94,Revenue,23820,Bates Office Services Limited,ME2 2LS,0
Director Of Environment,Golf Course,Golf Course,Purchases - Materials,Sand - Tonne,12/08/2022,REDACTED INVOICE NUMBER,162817,815.4,Revenue,355,Binder Loams Ltd,CM5 0HY,0
Director Of Law & Governance,Legal Services & Data Protect,Legal Services & Data Protect,Legal Fees,WILLIAM HUNTER HOUSE - 106 AGREEMENT,02/08/2022,REDACTED INVOICE NUMBER,163464,0,Revenue,359,Birketts Llp,CM2 0AP,0
Director Of Law & Governance,Legal Services & Data Protect,Legal Services & Data Protect,Legal Fees,GENERAL ADVICE FILE,09/08/2022,REDACTED INVOICE NUMBER,163376,232.5,Revenue,359,Birketts Llp,CM2 0AP,0
Director Of Law & Governance,Legal Services & Data Protect,Legal Services & Data Protect,Legal Fees,Lease of Suite 10 Brentwood Town Hall,12/08/2022,REDACTED INVOICE NUMBER,163242,2995,Revenue,359,Birketts Llp,CM2 0AP,0
Director Of Law & Governance,Legal Services & Data Protect,Legal Services & Data Protect,Search Fees,Lease of Suite 10 Brentwood Town Hall,12/08/2022,REDACTED INVOICE NUMBER,163242,6,Revenue,359,Birketts Llp,CM2 0AP,0
Director Of Law & Governance,Legal Services & Data Protect,Legal Services & Data Protect,Legal Fees,LICENCING SUB - COMM. 15JUL22,16/08/2022,REDACTED INVOICE NUMBER,163733,425,Revenue,359,Birketts Llp,CM2 0AP,0
Director Of Law & Governance,Legal Services & Data Protect,Legal Services & Data Protect,Legal Fees,LICENCING SUB COMM. 1JUL22,16/08/2022,REDACTED INVOICE NUMBER,163734,851.63,Revenue,359,Birketts Llp,CM2 0AP,0
Capex Director Of Housing,Housing - Affordable Housing,Brookfield Project,Enhancements,DEVELOPMENT AT BROOKFIELD CLOSE,19/08/2022,REDACTED INVOICE NUMBER,163861,1116.5,Capital,359,Birketts Llp,CM2 0AP,0
Director Of Law & Governance,Legal Services & Data Protect,Legal Services & Data Protect,Court Fees,BOUNDARY ADVICE,19/08/2022,REDACTED INVOICE NUMBER,163750,9,Revenue,359,Birketts Llp,CM2 0AP,0
Director Of Law & Governance,Legal Services & Data Protect,Legal Services & Data Protect,Legal Fees,BOUNDARY ADVICE,19/08/2022,REDACTED INVOICE NUMBER,163750,750,Revenue,359,Birketts Llp,CM2 0AP,0
Director Of Law & Governance,Legal Services & Data Protect,Legal Services & Data Protect,Legal Fees,HERONGATE VILLAGE HALL - ADVICE ,19/08/2022,REDACTED INVOICE NUMBER,163749,140,Revenue,359,Birketts Llp,CM2 0AP,0
Director Of Law & Governance,Legal Services & Data Protect,Legal Services & Data Protect,Legal Fees,LICENSING SUB COMMITTEE,23/08/2022,REDACTED INVOICE NUMBER,163735,350,Revenue,359,Birketts Llp,CM2 0AP,0
Capex Director Of Housing,Housing - Affordable Housing,Brookfield Project,Enhancements,Development at Brookfield Close,26/08/2022,REDACTED INVOICE NUMBER,163844,335.5,Capital,359,Birketts Llp,CM2 0AP,0
Director Of Law & Governance,Legal Services & Data Protect,Legal Services & Data Protect,Legal Fees,ENCROCHMENT,26/08/2022,REDACTED INVOICE NUMBER,163835,600,Revenue,359,Birketts Llp,CM2 0AP,0
Director Of Law & Governance,Legal Services & Data Protect,Legal Services & Data Protect,Legal Fees,RENT SHARING LEASES,26/08/2022,REDACTED INVOICE NUMBER,164524,1478,Revenue,359,Birketts Llp,CM2 0AP,0
Director Of Law & Governance,Legal Services & Data Protect,Legal Services & Data Protect,Planning Fees,General Planning File,26/08/2022,REDACTED INVOICE NUMBER,164080,1503.82,Revenue,359,Birketts Llp,CM2 0AP,0
Director Of Law & Governance,Legal Services & Data Protect,Legal Services & Data Protect,Search Fees,ENCROCHMENT,26/08/2022,REDACTED INVOICE NUMBER,163835,9,Revenue,359,Birketts Llp,CM2 0AP,0
Capex Director Of Housing,Housing - Affordable Housing,Coram Green,Aquisition Of Buildings,PROPERTY PURCHASE,16/08/2022,REDACTED INVOICE NUMBER,163971,424018,Capital,187779P,Birketts Llp Client Account (Pg),.,0
Director Corporate Resources,Asset Management,Asset Management,R&M Bldgs - General,ROLLER SHUTTER REPAIRS,26/08/2022,REDACTED INVOICE NUMBER,163597,1050,Revenue,361,Bis Door Systems Ltd,SS11 8XR,0
Director Corporate Resources,Asset Management,Asset Management,R&M Bldgs - General,ROLLER SHUTTER REPAIRS,26/08/2022,REDACTED INVOICE NUMBER,163598,650,Revenue,361,Bis Door Systems Ltd,SS11 8XR,0
Capex Director Of C Resources,Asset Management,Asset Management Strategy,R&M Bldgs - General,Coffee Van design,05/08/2022,REDACTED INVOICE NUMBER,162665,390,Capital,28883,Blue Serif Limited,CM14 9PJ,0
Director Of Environment,"Communities, Health & Leisure",Strawberry Fair,Licences - Other,STRAWBERRY FAYRE,12/08/2022,REDACTED INVOICE NUMBER,162670,55.28,Revenue,24466,Brentwood Baptist Church,.CM14 4DR,0
Director Of Environment,Parking,Parking Services,Telephones - General,RADIO HIRE - JUL '22 - MSCP,26/08/2022,REDACTED INVOICE NUMBER,163492,104.02,Revenue,415,Brentwood Communications Ltd,CM3 8EW,0
Director Of Environment,"Communities, Health & Leisure",Grants To Organisations,Grants - Bct,COMMUNITY TRANSPORT CO-ORDINATION,26/08/2022,REDACTED INVOICE NUMBER,164505,6634,Revenue,418,Brentwood Community Transport,CM14 4BX,0
Director Housing & Enforcement,Homelessness,Homelessness Prevention,B & B Charges (Homelessness),HOMELESSNESS PREVENTION,12/08/2022,REDACTED INVOICE NUMBER,162931,4455,Revenue,28943,Britannia Inn Hotel,IG1 3BD,0
Hra Expenditure,Repairs And Maintenance,Responsive Void Repairs,Electricity,ELECTRICITY SUPPLY,12/08/2022,REDACTED INVOICE NUMBER,163504,0.56,Revenue,492,British Gas Trading Limited (Please Use),GU95 1AB,0
Hra Expenditure,Repairs And Maintenance,Responsive Void Repairs,Electricity,ELECTRICITY SUPPLY,12/08/2022,REDACTED INVOICE NUMBER,163502,16.69,Revenue,492,British Gas Trading Limited (Please Use),GU95 1AB,0
Hra Expenditure,Repairs And Maintenance,Responsive Void Repairs,Electricity,ELECTRICITY SUPPLY,12/08/2022,REDACTED INVOICE NUMBER,163503,88.65,Revenue,492,British Gas Trading Limited (Please Use),GU95 1AB,0
Hra Expenditure,Repairs And Maintenance,Responsive Void Repairs,Electricity,ELECTRICITY SUPPLY,19/08/2022,REDACTED INVOICE NUMBER,163846,6.73,Revenue,492,British Gas Trading Limited (Please Use),GU95 1AB,0
Hra Expenditure,Repairs And Maintenance,Responsive Void Repairs,Gas,GAS SUPPLY,19/08/2022,REDACTED INVOICE NUMBER,163847,22.61,Revenue,492,British Gas Trading Limited (Please Use),GU95 1AB,0
Balance Sheet,Balance Sheet,Balance Sheet,Agency - Csp,CREDIT NOTE,02/08/2022,REDACTED INVOICE NUMBER,126510,-530,Revenue,497,British Red Cross,M50 2GT,0
Hra Expenditure,Special Services,Sheltered Welfare Services,Training Expenses,FIRST AID AT WORK,02/08/2022,REDACTED INVOICE NUMBER,163574,299,Revenue,497,British Red Cross,M50 2GT,0
Hra Expenditure,Special Services,Sheltered Welfare Services,Training Expenses,FIRST AID AT WORK,02/08/2022,REDACTED INVOICE NUMBER,163579,139,Revenue,497,British Red Cross,M50 2GT,0
Hra Expenditure,Special Services,Sheltered Welfare Services,Training Expenses,FIRST AID AT WORK,02/08/2022,REDACTED INVOICE NUMBER,163578,299,Revenue,497,British Red Cross,M50 2GT,0
Hra Expenditure,Special Services,Sheltered Welfare Services,Training Expenses,FIRST AID QUALIFICATION,02/08/2022,REDACTED INVOICE NUMBER,163576,219,Revenue,497,British Red Cross,M50 2GT,0
Hra Expenditure,Special Services,Sheltered Welfare Services,Training Expenses,FIRST AID REQUALIFICATION,02/08/2022,REDACTED INVOICE NUMBER,163573,219,Revenue,497,British Red Cross,M50 2GT,0
Hra Expenditure,Special Services,Sheltered Welfare Services,Training Expenses,FIRST AID AT WORK,19/08/2022,REDACTED INVOICE NUMBER,163577,139,Revenue,497,British Red Cross,M50 2GT,0
Director Digital & Customer En,Digital Servs & Transformation,Ict Services,Telephones - General,PHONE CHARGES,12/08/2022,REDACTED INVOICE NUMBER,163825,150.1,Revenue,501,British Telecommunications Plc,DH98 1BT,0
Director Of Environment,Vehicle Fleet Management,Vehicle Fleet Management,Vehicle R&M - External,Full Contract Maintenance,05/08/2022,REDACTED INVOICE NUMBER,162675,548.6,Revenue,28207,Bucher Municipal Limited,RH4 1XF,0
Director Of Environment,Vehicle Fleet Management,Vehicle Fleet Management,Vehicle Replacement Parts,VEHICLE PARTS,02/08/2022,REDACTED INVOICE NUMBER,162493,449.97,Revenue,25512,C V Components,EM8 7NH,0
Director Of Environment,Vehicle Fleet Management,Vehicle Fleet Management,Vehicle Replacement Parts,VEHICLE PARTS,02/08/2022,REDACTED INVOICE NUMBER,162429,210.62,Revenue,25512,C V Components,EM8 7NH,0
Director Of Environment,Vehicle Fleet Management,Vehicle Fleet Management,Vehicle Replacement Parts,PARTS,05/08/2022,REDACTED INVOICE NUMBER,162580,153.07,Revenue,25512,C V Components,EM8 7NH,0
Director Of Environment,Vehicle Fleet Management,Vehicle Fleet Management,Vehicle Replacement Parts,PARTS,05/08/2022,REDACTED INVOICE NUMBER,162581,23.8,Revenue,25512,C V Components,EM8 7NH,0
Director Of Environment,Vehicle Fleet Management,Vehicle Fleet Management,Vehicle Replacement Parts,PARTS,05/08/2022,REDACTED INVOICE NUMBER,162584,48.5,Revenue,25512,C V Components,EM8 7NH,0
Director Of Environment,Vehicle Fleet Management,Vehicle Fleet Management,Vehicle Replacement Parts,PARTS,05/08/2022,REDACTED INVOICE NUMBER,162582,11.36,Revenue,25512,C V Components,EM8 7NH,0
Director Of Environment,Vehicle Fleet Management,Vehicle Fleet Management,Vehicle Replacement Parts,VEHICLE PARTS,05/08/2022,REDACTED INVOICE NUMBER,162522,33.36,Revenue,25512,C V Components,EM8 7NH,0
Director Of Environment,Vehicle Fleet Management,Vehicle Fleet Management,Vehicle Replacement Parts,VEHICLE PARTS ,05/08/2022,REDACTED INVOICE NUMBER,162525,5.77,Revenue,25512,C V Components,EM8 7NH,0
Director Of Environment,Vehicle Fleet Management,Vehicle Fleet Management,Vehicle Replacement Parts,VEHICLE PARTS ,05/08/2022,REDACTED INVOICE NUMBER,162524,89.62,Revenue,25512,C V Components,EM8 7NH,0
Director Of Environment,Vehicle Fleet Management,Vehicle Fleet Management,Vehicle Replacement Parts,VEHICLE PARTS ,05/08/2022,REDACTED INVOICE NUMBER,162523,9.37,Revenue,25512,C V Components,EM8 7NH,0
Director Of Environment,Vehicle Fleet Management,Vehicle Fleet Management,Vehicle Replacement Parts,VEHICLE PARTS ,05/08/2022,REDACTED INVOICE NUMBER,162520,54.58,Revenue,25512,C V Components,EM8 7NH,0
Director Of Environment,Vehicle Fleet Management,Vehicle Fleet Management,Vehicle Replacement Parts,VEHICLE PARTS ,05/08/2022,REDACTED INVOICE NUMBER,162521,150,Revenue,25512,C V Components,EM8 7NH,0
Director Of Environment,Vehicle Fleet Management,Vehicle Fleet Management,Vehicle Replacement Parts,VEHICLE PARTS ,09/08/2022,REDACTED INVOICE NUMBER,162693,23.14,Revenue,25512,C V Components,EM8 7NH,0
Director Of Environment,Vehicle Fleet Management,Vehicle Fleet Management,Vehicle Replacement Parts,CREDIT NOTE,16/08/2022,REDACTED INVOICE NUMBER,164005,-245.29,Revenue,25512,C V Components,EM8 7NH,0
Director Of Environment,Vehicle Fleet Management,Vehicle Fleet Management,Vehicle Replacement Parts,PARTS,16/08/2022,REDACTED INVOICE NUMBER,162562,440.48,Revenue,25512,C V Components,EM8 7NH,0
Director Of Environment,Vehicle Fleet Management,Vehicle Fleet Management,Vehicle Replacement Parts,VEHICLE PARTS ,16/08/2022,REDACTED INVOICE NUMBER,162749,582.17,Revenue,25512,C V Components,EM8 7NH,0
Director Of Environment,Vehicle Fleet Management,Vehicle Fleet Management,Vehicle Replacement Parts,VEHICLE PARTS ,16/08/2022,REDACTED INVOICE NUMBER,163945,14.52,Revenue,25512,C V Components,EM8 7NH,0
Director Of Environment,Vehicle Fleet Management,Vehicle Fleet Management,Vehicle Replacement Parts,CREDIT NOTE,19/08/2022,REDACTED INVOICE NUMBER,164201,-34.06,Revenue,25512,C V Components,EM8 7NH,0
Director Of Environment,Vehicle Fleet Management,Vehicle Fleet Management,Vehicle Replacement Parts,CREDIT NOTE,19/08/2022,REDACTED INVOICE NUMBER,164203,-112,Revenue,25512,C V Components,EM8 7NH,0
Director Of Environment,Vehicle Fleet Management,Vehicle Fleet Management,Vehicle Replacement Parts,VEHICLE PARTS ,19/08/2022,REDACTED INVOICE NUMBER,163836,250,Revenue,25512,C V Components,EM8 7NH,0
Director Of Environment,Vehicle Fleet Management,Vehicle Fleet Management,Vehicle Replacement Parts,PARTS,26/08/2022,REDACTED INVOICE NUMBER,163034,198.03,Revenue,25512,C V Components,EM8 7NH,0
Director Of Environment,Vehicle Fleet Management,Vehicle Fleet Management,Vehicle Replacement Parts,PARTS,26/08/2022,REDACTED INVOICE NUMBER,163035,224.1,Revenue,25512,C V Components,EM8 7NH,0
Director Of Environment,Vehicle Fleet Management,Vehicle Fleet Management,Vehicle Replacement Parts,PARTS,26/08/2022,REDACTED INVOICE NUMBER,163036,279.73,Revenue,25512,C V Components,EM8 7NH,0
Director Of Environment,Vehicle Fleet Management,Vehicle Fleet Management,Vehicle Replacement Parts,PARTS,26/08/2022,REDACTED INVOICE NUMBER,163200,157,Revenue,25512,C V Components,EM8 7NH,0
Director Of Environment,Vehicle Fleet Management,Vehicle Fleet Management,Vehicle Replacement Parts,PARTS,26/08/2022,REDACTED INVOICE NUMBER,163213,461.59,Revenue,25512,C V Components,EM8 7NH,0
Director Of Environment,Vehicle Fleet Management,Vehicle Fleet Management,Vehicle Replacement Parts,PARTS,26/08/2022,REDACTED INVOICE NUMBER,163210,187.11,Revenue,25512,C V Components,EM8 7NH,0
Director Of Environment,Vehicle Fleet Management,Vehicle Fleet Management,Vehicle Replacement Parts,PARTS,26/08/2022,REDACTED INVOICE NUMBER,163211,27.98,Revenue,25512,C V Components,EM8 7NH,0
Director Of Environment,Vehicle Fleet Management,Vehicle Fleet Management,Vehicle Replacement Parts,PARTS,26/08/2022,REDACTED INVOICE NUMBER,163212,275,Revenue,25512,C V Components,EM8 7NH,0
Director Of Environment,Vehicle Fleet Management,Vehicle Fleet Management,Vehicle Replacement Parts,VEHICLE PARTS,26/08/2022,REDACTED INVOICE NUMBER,163458,204,Revenue,25512,C V Components,EM8 7NH,0
Director Of Environment,Vehicle Fleet Management,Vehicle Fleet Management,Vehicle Replacement Parts,VEHICLE PARTS,26/08/2022,REDACTED INVOICE NUMBER,163459,355.98,Revenue,25512,C V Components,EM8 7NH,0
Director Of Environment,Vehicle Fleet Management,Vehicle Fleet Management,Vehicle Replacement Parts,VEHICLE PARTS,26/08/2022,REDACTED INVOICE NUMBER,163453,112,Revenue,25512,C V Components,EM8 7NH,0
Director Of Environment,Vehicle Fleet Management,Vehicle Fleet Management,Vehicle Replacement Parts,VEHICLE PARTS,26/08/2022,REDACTED INVOICE NUMBER,163454,25.7,Revenue,25512,C V Components,EM8 7NH,0
Director Of Environment,Vehicle Fleet Management,Vehicle Fleet Management,Vehicle Replacement Parts,VEHICLE PARTS,26/08/2022,REDACTED INVOICE NUMBER,163455,78.56,Revenue,25512,C V Components,EM8 7NH,0
Director Of Environment,Vehicle Fleet Management,Vehicle Fleet Management,Vehicle Replacement Parts,VEHICLE PARTS,26/08/2022,REDACTED INVOICE NUMBER,162794,87.75,Revenue,25512,C V Components,EM8 7NH,0
Director Of Environment,Vehicle Fleet Management,Vehicle Fleet Management,Vehicle Replacement Parts,VEHICLE PARTS,26/08/2022,REDACTED INVOICE NUMBER,162891,16.53,Revenue,25512,C V Components,EM8 7NH,0
Director Of Environment,Vehicle Fleet Management,Vehicle Fleet Management,Vehicle Replacement Parts,VEHICLE PARTS,26/08/2022,REDACTED INVOICE NUMBER,163390,460,Revenue,25512,C V Components,EM8 7NH,0
Director Of Environment,Vehicle Fleet Management,Vehicle Fleet Management,Vehicle Replacement Parts,VEHICLE PARTS,26/08/2022,REDACTED INVOICE NUMBER,163344,173.46,Revenue,25512,C V Components,EM8 7NH,0
Director Of Environment,Vehicle Fleet Management,Vehicle Fleet Management,Vehicle Replacement Parts,VEHICLE PARTS,26/08/2022,REDACTED INVOICE NUMBER,163345,69.52,Revenue,25512,C V Components,EM8 7NH,0
Director Of Environment,Vehicle Fleet Management,Vehicle Fleet Management,Vehicle Replacement Parts,VEHICLE PARTS,30/08/2022,REDACTED INVOICE NUMBER,163723,450,Revenue,25512,C V Components,EM8 7NH,0
Director Of Environment,Vehicle Fleet Management,Vehicle Fleet Management,Vehicle Replacement Parts,VEHICLE PARTS,30/08/2022,REDACTED INVOICE NUMBER,163722,151.54,Revenue,25512,C V Components,EM8 7NH,0
Director Of Environment,Vehicle Fleet Management,Vehicle Fleet Management,Vehicle Replacement Parts,VEHICLE PARTS,30/08/2022,REDACTED INVOICE NUMBER,163721,122.48,Revenue,25512,C V Components,EM8 7NH,0
Director Corporate Resources,Corporate Management,Corporate Management Costs,Bank Charges,DIRECT DEBIT,05/08/2022,REDACTED INVOICE NUMBER,163244,70.84,Revenue,23084,Capita Bus. Serv Ltd (Pg Payments),DL1 9HN,0
Director Corporate Resources,Corporate Management,Corporate Management Costs,Bank Charges,Transaction charges,16/08/2022,REDACTED INVOICE NUMBER,163948,216.87,Revenue,23084,Capita Bus. Serv Ltd (Pg Payments),DL1 9HN,0
Director Corporate Resources,Corporate Management,Corporate Management Costs,Bank Charges,TRANSACTIONS CHARGES,16/08/2022,REDACTED INVOICE NUMBER,164065,7081.26,Revenue,23084,Capita Bus. Serv Ltd (Pg Payments),DL1 9HN,0
Director Of Planning & Economy,Planning Policy Total,Planning Policy,Other Fees & Service,DUNTON HILLS VIABILITY ASSESSMENT,05/08/2022,REDACTED INVOICE NUMBER,162660,5619,Revenue,29051,Carter Jonas Llp,W1G 0BG,0
Director Of Planning & Economy,Planning Policy Total,Planning Policy,Other Fees & Service,PROFESSIONAL FEES. DUNTON HILLS VILLAGE,26/08/2022,REDACTED INVOICE NUMBER,163745,10000,Revenue,29051,Carter Jonas Llp,W1G 0BG,0
Chief Executive,Executive Board,Senior Leadership Team,Subscriptions,Share of the operating costs ,05/08/2022,REDACTED INVOICE NUMBER,162561,6250,Revenue,579,Castle Point Borough Council,SS7 ITF,0
Director Of Environment,Parking,Parking Services,Telephones - General,Call Charges,30/08/2022,REDACTED INVOICE NUMBER,164091,32.21,Revenue,22769,Catalyst Amc Ltd,B77 3QU,0
Capex Director Digital & C.E,Ict Services,Ict Hardware,Enhancements,IT EQUIPMENT,09/08/2022,REDACTED INVOICE NUMBER,162696,1853.88,Capital,586,Ccs Media Ltd,RM1 3PJ,0
Capex Director Digital & C.E,Ict Services,Ict Hardware,Enhancements,IT EQUIPMENT,23/08/2022,REDACTED INVOICE NUMBER,163449,1080.27,Capital,586,Ccs Media Ltd,RM1 3PJ,0
Capex Director Digital & C.E,Ict Services,Ict Hardware,Enhancements,MOTOROLA MOTO,30/08/2022,REDACTED INVOICE NUMBER,163724,853.85,Capital,586,Ccs Media Ltd,RM1 3PJ,0
Balance Sheet,Balance Sheet,Balance Sheet,Highways Stores,SAFETY EQUIPMENT,16/08/2022,REDACTED INVOICE NUMBER,162927,185,Revenue,645,Chelmsford Safety Supplies,CM1 3AG,0
Balance Sheet,Balance Sheet,Balance Sheet,Highways Stores,Legionnaire Cap Navy cw,19/08/2022,REDACTED INVOICE NUMBER,163222,212.75,Revenue,645,Chelmsford Safety Supplies,CM1 3AG,0
Balance Sheet,Balance Sheet,Balance Sheet,Highways Stores,CLOTHING,26/08/2022,REDACTED INVOICE NUMBER,163698,39.2,Revenue,645,Chelmsford Safety Supplies,CM1 3AG,0
Balance Sheet,Balance Sheet,Balance Sheet,Highways Stores,CLOTHING,26/08/2022,REDACTED INVOICE NUMBER,163699,322.08,Revenue,645,Chelmsford Safety Supplies,CM1 3AG,0
Balance Sheet,Balance Sheet,Balance Sheet,Highways Stores,GLOVES,26/08/2022,REDACTED INVOICE NUMBER,163591,437.76,Revenue,645,Chelmsford Safety Supplies,CM1 3AG,0
Director Of Environment,"Communities, Health & Leisure",Christmas Lights & Decorations,Contracted Services,Christmas Lighting 2022,26/08/2022,REDACTED INVOICE NUMBER,164276,7000,Revenue,1151,Christmas Illumination Ltd,RM15 6RS,0
Director Corporate Resources,Corporate Finance,Corporate Finance,Subscriptions,TISONLINE SUBSCRIPTION - 22-23,05/08/2022,REDACTED INVOICE NUMBER,163643,3100,Revenue,681,Cipfa Business Limited,E1W 9LN,0
Director Corporate Resources,Human Resources,Human Resources,Training Expenses,ACCOUNTING WEBINAR - 7/7/22,26/08/2022,REDACTED INVOICE NUMBER,164299,145,Revenue,681,Cipfa Business Limited,E1W 9LN,0
Director Of Law & Governance,Democratic Services & Support,Member Advice & Support,Computer Software Licences,Online PO  PC Training,09/08/2022,REDACTED INVOICE NUMBER,162702,1562.5,Revenue,693,Civica Uk Ltd,DY1 4TD,0
Capex Director Of Housing,Housing - Affordable Housing,17 Crescent Road,Enhancements,ENHANCEMENTS,16/08/2022,REDACTED INVOICE NUMBER,163817,60784.11,Capital,28999,Colnesett Ltd,CO5 9SE,0
Director Corporate Resources,Human Resources,Human Resources,Training Expenses,TRAINING,30/08/2022,REDACTED INVOICE NUMBER,164303,1095,Revenue,29099,Community Safety Professionals Ltd,WA14 1ES,0
Director Of Environment,Parking,Parking Services,Equipment & Tools - R&M,GATE REPAIRS - MSCP,12/08/2022,REDACTED INVOICE NUMBER,162964,650,Revenue,767,Cova Security Gate,RH10 9NH,0
Capex Director Of Housing,Housing - Affordable Housing,Harewood Rd Dev,Enhancements,Parking Stress Suvey,30/08/2022,REDACTED INVOICE NUMBER,163990,3750,Capital,29117,Create Consulting Engineers Ltd,NR3 1AF,0
Director Corporate Resources,Asset Management,Asset Management,R&M Bldgs - General,VEGETATION CLEARANCE - TOWN HALL,30/08/2022,REDACTED INVOICE NUMBER,163627,884,Revenue,29136,Crestel Projects Ltd,PE2 6XS,0
Director Of Environment,Parking,Parking Services,Equipment & Tools - R&M,EQUIPMENT,05/08/2022,REDACTED INVOICE NUMBER,162583,69.63,Revenue,28819,Csa Industrial Cleaning Machinery,CB24 8SW,0
Hra Expenditure,Repairs And Maintenance,Responsive Void Repairs,R&M Bldgs - General,TREE WORKS,16/08/2022,REDACTED INVOICE NUMBER,164084,450,Revenue,27170,Cut Above,CM15 0PG,0
Hra Expenditure,Repairs And Maintenance,Responsive Void Repairs,R&M Bldgs - General,TREE WORKS,16/08/2022,REDACTED INVOICE NUMBER,164085,1440,Revenue,27170,Cut Above,CM15 0PG,0
Director Of Environment,Health & Food Safety,Food Safety Enforcement,Analytical Services,HEALTH AND SAFETY INSPECTIONS,26/08/2022,REDACTED INVOICE NUMBER,163644,1655,Revenue,792,D Barham Limited,CO2 7HW,0
Director Of Planning & Economy,Planning Development Managemt,Planning Development Managemt,Contracted Services,LOCAL PLAN,19/08/2022,REDACTED INVOICE NUMBER,163762,4387.5,Revenue,26869,D.U.P. Limited,EC2A 4NE,0
Balance Sheet,Balance Sheet,Balance Sheet,Insurance Account,PROFESSIONAL FEES,12/08/2022,REDACTED INVOICE NUMBER,163765,0,Revenue,808,Dac Beachcroft Llp,BS99 7UR,0
Balance Sheet,Balance Sheet,Balance Sheet,Insurance Account,VAT ON PROFESSIONAL FEES,12/08/2022,REDACTED INVOICE NUMBER,163611,0,Revenue,808,Dac Beachcroft Llp,BS99 7UR,0
Balance Sheet,Balance Sheet,Balance Sheet,Insurance Account,VAT ONLY,16/08/2022,REDACTED INVOICE NUMBER,164062,0,Revenue,808,Dac Beachcroft Llp,BS99 7UR,0
Director Digital & Customer En,Digital Servs & Transformation,Ict Services,Mobile Phone - General,PHONE CHARGES,02/08/2022,REDACTED INVOICE NUMBER,162511,638.94,Revenue,811,Daisy Communications Ltd,BB9 5SR,0
Director Digital & Customer En,Digital Servs & Transformation,Ict Services,Telephones - General,PHONE CHARGES,30/08/2022,REDACTED INVOICE NUMBER,163728,1536.81,Revenue,811,Daisy Communications Ltd,BB9 5SR,0
Capex Director Digital & C.E,Ict Services,Ict Hardware,Enhancements,IT EQUIPMENT,02/08/2022,REDACTED INVOICE NUMBER,159202,5559.9,Capital,28443,Dell Emc,RG12 1LF,0
Director Of Environment,Vehicle Fleet Management,Vehicle Fleet Management,Vehicle Replacement Parts,VEHICLE REPAIRS,16/08/2022,REDACTED INVOICE NUMBER,163717,987.7,Revenue,861,Dennis Eagle Ltd,CV34 6TE,0
Director Of Environment,Vehicle Fleet Management,Vehicle Fleet Management,Vehicle Replacement Parts,VEHICLE REPAIRS,16/08/2022,REDACTED INVOICE NUMBER,163718,75.64,Revenue,861,Dennis Eagle Ltd,CV34 6TE,0
Director Of Environment,"Communities, Health & Leisure",Health & Wellbeing,Grants - General,GRANT,12/08/2022,REDACTED INVOICE NUMBER,163758,1100,Revenue,225957P,Doddinghurst Road Church,CM15 9EH,0
Director Of Environment,Waste Management,Waste Collection Support,Agency Staff,PROJECT MANAGEMENT SUPPORT,02/08/2022,REDACTED INVOICE NUMBER,163322,2082.6,Revenue,28029,Driver Hire (Chelmsford & Harlow),CM8 1BA,0
Director Of Environment,Golf Course,Golf Course,Agency Staff,PROJECT MANAGEMENT SUPPORT,09/08/2022,REDACTED INVOICE NUMBER,163478,604.5,Revenue,28029,Driver Hire (Chelmsford & Harlow),CM8 1BA,0
Director Of Environment,Golf Course,Golf Course,Agency Staff,PROJECT MANAGEMENT SUPPORT,09/08/2022,REDACTED INVOICE NUMBER,163486,292.95,Revenue,28029,Driver Hire (Chelmsford & Harlow),CM8 1BA,0
Director Of Environment,Golf Course,Golf Course,Agency Staff,PROJECT MANAGEMENT SUPPORT,09/08/2022,REDACTED INVOICE NUMBER,163477,604.5,Revenue,28029,Driver Hire (Chelmsford & Harlow),CM8 1BA,0
Director Of Environment,Golf Course,Golf Course,Agency Staff,PROJECT MANAGEMENT SUPPORT,09/08/2022,REDACTED INVOICE NUMBER,163476,604.5,Revenue,28029,Driver Hire (Chelmsford & Harlow),CM8 1BA,0
Director Of Environment,Golf Course,Golf Course,Agency Staff,PROJECT MANAGEMENT SUPPORT,16/08/2022,REDACTED INVOICE NUMBER,163475,316.2,Revenue,28029,Driver Hire (Chelmsford & Harlow),CM8 1BA,0
Director Of Environment,Waste Management,Waste Collection Support,Agency Staff,PROJECT MANAGEMENT SUPPORT,16/08/2022,REDACTED INVOICE NUMBER,163707,483.6,Revenue,28029,Driver Hire (Chelmsford & Harlow),CM8 1BA,0
Director Of Environment,Waste Management,Waste Collection Support,Agency Staff,PROJECT MANAGEMENT SUPPORT,19/08/2022,REDACTED INVOICE NUMBER,163706,1376.4,Revenue,28029,Driver Hire (Chelmsford & Harlow),CM8 1BA,0
Director Of Environment,Golf Course,Golf Course,Agency Staff,PROJECT MANAGEMENT SUPPORT,23/08/2022,REDACTED INVOICE NUMBER,163956,604.5,Revenue,28029,Driver Hire (Chelmsford & Harlow),CM8 1BA,0
Director Of Environment,Waste Management,Waste Collection Support,Agency Staff,PROJECT MANAGEMENT SUPPORT,26/08/2022,REDACTED INVOICE NUMBER,163465,1794.9,Revenue,28029,Driver Hire (Chelmsford & Harlow),CM8 1BA,0
Director Of Environment,Golf Course,Golf Course,Agency Staff,PROJECT MANAGEMENT SUPPORT,30/08/2022,REDACTED INVOICE NUMBER,164165,623.1,Revenue,28029,Driver Hire (Chelmsford & Harlow),CM8 1BA,0
Capex Director Of Housing,Housing - Hra,Asbestos,Enhancements,ASBESTOS REMOVAL,30/08/2022,REDACTED INVOICE NUMBER,163638,660,Capital,28327,Ductclean Uk Ltd,AI7 1JQ,0
Capex Director Of Housing,Housing - Hra,Asbestos,Enhancements,ASBESTOS REMOVAL,30/08/2022,REDACTED INVOICE NUMBER,163631,190,Capital,28327,Ductclean Uk Ltd,AI7 1JQ,0
Capex Director Of Housing,Housing - Hra,Asbestos,Enhancements,ASBESTOS REMOVAL,30/08/2022,REDACTED INVOICE NUMBER,163639,380,Capital,28327,Ductclean Uk Ltd,AI7 1JQ,0
Capex Director Of Housing,Housing - Hra,Asbestos,Enhancements,ASBESTOS REMOVAL,30/08/2022,REDACTED INVOICE NUMBER,163641,190,Capital,28327,Ductclean Uk Ltd,AI7 1JQ,0
Capex Director Of Housing,Housing - Hra,Asbestos,Enhancements,ASBESTOS REMOVAL,30/08/2022,REDACTED INVOICE NUMBER,163634,190,Capital,28327,Ductclean Uk Ltd,AI7 1JQ,0
Capex Director Of Housing,Housing - Hra,Asbestos,Enhancements,ASBESTOS REMOVAL,30/08/2022,REDACTED INVOICE NUMBER,163640,600,Capital,28327,Ductclean Uk Ltd,AI7 1JQ,0
Capex Director Of Housing,Housing - Hra,Asbestos,Enhancements,ASBESTOS REMOVAL,30/08/2022,REDACTED INVOICE NUMBER,163635,190,Capital,28327,Ductclean Uk Ltd,AI7 1JQ,0
Capex Director Of Housing,Housing - Hra,Asbestos,Enhancements,ASBESTOS REMOVAL,30/08/2022,REDACTED INVOICE NUMBER,163632,190,Capital,28327,Ductclean Uk Ltd,AI7 1JQ,0
Capex Director Of Housing,Housing - Hra,Asbestos,Enhancements,ASBESTOS REMOVAL,30/08/2022,REDACTED INVOICE NUMBER,163636,1000,Capital,28327,Ductclean Uk Ltd,AI7 1JQ,0
Capex Director Of Housing,Housing - Hra,Asbestos,Enhancements,ASBESTOS REMOVAL,30/08/2022,REDACTED INVOICE NUMBER,163637,400,Capital,28327,Ductclean Uk Ltd,AI7 1JQ,0
Capex Director Of Housing,Housing - Hra,Asbestos,Enhancements,ASBESTOS REMOVAL,30/08/2022,REDACTED INVOICE NUMBER,163633,600,Capital,28327,Ductclean Uk Ltd,AI7 1JQ,0
Hra Expenditure,Repairs And Maintenance,Responsive Void Repairs,Gas,GAS SUPPLY,05/08/2022,REDACTED INVOICE NUMBER,161938,58.08,Revenue,959,E.On,NG1 6HD,0
Hra Expenditure,Repairs And Maintenance,Responsive Void Repairs,Electricity,ELECTRICITY SUPPLY,12/08/2022,REDACTED INVOICE NUMBER,163587,79.31,Revenue,959,E.On,NG1 6HD,0
Capex Director Of Housing,Housing - Affordable Housing,Coram Green,Enhancements,MARKETPLACE - GENERAL SALES,26/08/2022,REDACTED INVOICE NUMBER,164525,31722.1,Capital,970,East Of England Local Government Associat,IP33 3YU,0
Hra Expenditure,Supervision And Management,Policy And Management,Consultancy Fees,CONSULTANCY,16/08/2022,REDACTED INVOICE NUMBER,163690,765,Revenue,27607,Echelon Consultancy Limited,AL1 4TB,0
Hra Expenditure,Supervision And Management,Policy And Management,Consultancy Fees,CONTRACT PERFORMANCE ETC,23/08/2022,REDACTED INVOICE NUMBER,163688,3442.5,Revenue,27607,Echelon Consultancy Limited,AL1 4TB,0
Director Of Environment,"Communities, Health & Leisure",Family Fun Days,Contracted Services,MEDIC COVER - FAMILY FUN DAY,16/08/2022,REDACTED INVOICE NUMBER,164102,950,Revenue,1018,Emergency Response,CM14 5SD,0
Hra Expenditure,Repairs And Maintenance,Planned Maintenance,R&M Other - Sewerage,SUBSISTENCE CHARGES,09/08/2022,REDACTED INVOICE NUMBER,163584,1780,Revenue,1032,Environment Agency,NP10 8FZ,0
Director Of Environment,Grounds Maintenance,Grounds Maintenance,Equipment & Tools - R&M,HEDGE CUTTER REPAIRS,09/08/2022,REDACTED INVOICE NUMBER,163731,423,Revenue,1050,Ernest Doe & Sons Ltd,CM9 6QH,0
Hra Expenditure,Supervision And Management,Managing Tenancies,Subscriptions,EHOG SUBSCRIPTION - 22/23,23/08/2022,REDACTED INVOICE NUMBER,163457,1000,Revenue,1075,Essex County Council,CM1 1JZ,0
Capex Director Of Housing,Housing - Affordable Housing,Brookfield Project,Enhancements,ENHANCEMENTS,16/08/2022,REDACTED INVOICE NUMBER,163617,435,Capital,225557P,Essex Elite Floors,.,0
Director Corporate Resources,Emergency Planning,Emergency Planning,Contributions,ESSEX RESILIENCE FORUM,19/08/2022,REDACTED INVOICE NUMBER,163215,1359.97,Revenue,5758,Essex Fire And Rescue Services,CM8 3HB,0
Capex Director Of Housing,Housing - Affordable Housing,Harewood Rd Dev,Enhancements,ENHANCEMENTS,16/08/2022,REDACTED INVOICE NUMBER,163852,50,Capital,225960P,Essex Mammal Surveys,CM3 4DT,0
Director Digital & Customer En,Digital Servs & Transformation,Ict Services,Contracted Services,DSAR Redaction Services,02/08/2022,REDACTED INVOICE NUMBER,162411,5000,Revenue,28137,Evalian Ltd,SO32 2HD,0
Director Of Law & Governance,Democratic Services & Support,Civic Services & Support,Chairmans Civic Expenditure,SOLACE ANNUAL SUMMIT,09/08/2022,REDACTED INVOICE NUMBER,163451,516,Revenue,1121,Event-X Limited,CR8 3EH,0
Director Of Environment,Open Spaces,Recreation Areas,Purchases - Materials,To install park bench as requested,05/08/2022,REDACTED INVOICE NUMBER,162519,300,Revenue,1134,F J Britten Landscapes Ltd,CM3 8BG,0
Capex Director Of Environment,S106 North Road Play Area,S106 North Road Play Area,Enhancements,PREPARE AREA - KGPF PLAY AREA,23/08/2022,REDACTED INVOICE NUMBER,163462,4200,Capital,1134,F J Britten Landscapes Ltd,CM3 8BG,0
Director Of Environment,Env Pro. Noise & Pollution,Env Pro. Noise & Pollution,Subscriptions,Software Support Annual Charge,05/08/2022,REDACTED INVOICE NUMBER,163321,115,Revenue,1150,Ferret Information Systems Ltd,CF10 5NB,0
Hra Expenditure,Special Services,Sheltered Welfare Services,Equipment & Tools - R&M,Commercial laundry  Dishwashing,16/08/2022,REDACTED INVOICE NUMBER,163330,336.91,Revenue,1160,First Choice Marshalls,UB9 4DN,0
Hra Expenditure,Special Services,Sheltered Welfare Services,Equipment & Tools - R&M,Commercial laundry  Dishwashin,30/08/2022,REDACTED INVOICE NUMBER,163980,115,Revenue,1160,First Choice Marshalls,UB9 4DN,0
Director Of Environment,Golf Course,Golf Course,Legal Fees,DD AUG 22,12/08/2022,REDACTED INVOICE NUMBER,163843,23.19,Revenue,27884,First Data Global Leasing (Dd Payments),SS14 3WF,0
Director Of Environment,Golf Course,Golf Course,Bank Charges,DD AUG 22,23/08/2022,REDACTED INVOICE NUMBER,164198,19,Revenue,27884,First Data Global Leasing (Dd Payments),SS14 3WF,0
Director Of Environment,Golf Course,Golf Course,Purchases - General Equipment,TURF RENOVATOR,12/08/2022,REDACTED INVOICE NUMBER,163939,229.5,Revenue,25575,Firstcall Corporation Ltd,DE24 8AJ,0
Director Corporate Resources,Asset Management,Asset Management,R&M Bldgs - General,FURNITURE REMOVAL - COMMUNITY,02/08/2022,REDACTED INVOICE NUMBER,162438,1460,Revenue,1163,Fisk Building Contractors Ltd,CM11 1PW,0
Director Corporate Resources,Office Accommodation,Office Facilities Management,R&M Bldgs - General,DEHUMIDIFIERS AND REMOVALS,02/08/2022,REDACTED INVOICE NUMBER,162439,1750,Revenue,1163,Fisk Building Contractors Ltd,CM11 1PW,0
Director Corporate Resources,Office Accommodation,Office Accommodation,R&M Bldgs - General,WORKS -  TOWN HALL,05/08/2022,REDACTED INVOICE NUMBER,162553,9570,Revenue,1163,Fisk Building Contractors Ltd,CM11 1PW,0
Director Corporate Resources,Asset Management,Asset Management,R&M Bldgs - General,Replacement Front door - Poplar Lodge,12/08/2022,REDACTED INVOICE NUMBER,162808,1550,Revenue,1163,Fisk Building Contractors Ltd,CM11 1PW,0
Director Corporate Resources,Asset Management,Asset Management,R&M Bldgs - General,Various works July,12/08/2022,REDACTED INVOICE NUMBER,162804,443,Revenue,1163,Fisk Building Contractors Ltd,CM11 1PW,0
Director Corporate Resources,Office Accommodation,Office Facilities Management,R&M Bldgs - General,Various works July,12/08/2022,REDACTED INVOICE NUMBER,162804,585,Revenue,1163,Fisk Building Contractors Ltd,CM11 1PW,0
Director Of Environment,Open Spaces,Buildings & Stakeholders,R&M Fix & Fit - General,Middle Road Allotment,19/08/2022,REDACTED INVOICE NUMBER,163329,350,Revenue,1163,Fisk Building Contractors Ltd,CM11 1PW,0
Director Of Environment,Parking,Parking Services,Equipment & Tools - R&M,ARCH I PEL TRANSACTIONS,05/08/2022,REDACTED INVOICE NUMBER,162564,646.92,Revenue,4187,Flowbird Smart City Uk Ltd (Was Parkeon),BH12 5AG,0
Director Of Environment,Parking,Parking Services,Equipment & Tools - R&M,Refurbished Varioflex,05/08/2022,REDACTED INVOICE NUMBER,162745,3698.44,Revenue,4187,Flowbird Smart City Uk Ltd (Was Parkeon),BH12 5AG,0
Director Of Environment,Parking,Parking Services,Equipment & Tools - R&M,SMARTFOLIO EPD INCL,05/08/2022,REDACTED INVOICE NUMBER,162565,324,Revenue,4187,Flowbird Smart City Uk Ltd (Was Parkeon),BH12 5AG,0
Director Corporate Resources,Design And Print Services,Design & Print Services,Printing Materials,PVC CLEAR - A4,19/08/2022,REDACTED INVOICE NUMBER,163596,52.5,Revenue,1199,Fulton Paper,SS2 5RY,0
Director Corporate Resources,Design And Print Services,Design & Print Services,Stationery - Paper,WHITE COPIER PAPER,19/08/2022,REDACTED INVOICE NUMBER,163327,970,Revenue,1199,Fulton Paper,SS2 5RY,0
Director Of Environment,Parking,Parking Services,Cash Collection,Cash Centre  Coin Store,26/08/2022,REDACTED INVOICE NUMBER,164181,164.16,Revenue,23898,G4s Secure Solutions (Uk) Ltd,SM1 4LD,0
Director Of Environment,Parking,Parking Services,Cash Collection,Cash Centre  Coin Store,26/08/2022,REDACTED INVOICE NUMBER,164182,218.88,Revenue,23898,G4s Secure Solutions (Uk) Ltd,SM1 4LD,0
Hra Expenditure,Repairs And Maintenance,Planned Maintenance,Contracted Services,ELECTRIC CERTIFICATES AND INSPECTIONS,30/08/2022,REDACTED INVOICE NUMBER,163827,1836.5,Revenue,27976,Gas Contract Services Ltd,ME2 4NZ,0
Hra Expenditure,Special Services,Communal Heating,Gas,GAS SUPPLY,02/08/2022,REDACTED INVOICE NUMBER,163386,13.44,Revenue,1222,Gazprom Energy,M3 3GY,0
Hra Expenditure,Special Services,Communal Heating,Gas,GAS SUPPLY,02/08/2022,REDACTED INVOICE NUMBER,163349,22.72,Revenue,1222,Gazprom Energy,M3 3GY,0
Director Of Environment,Depot Management & Admin,Depot Management & Admin,Gas,GAS SUPPLY,05/08/2022,REDACTED INVOICE NUMBER,163370,60.52,Revenue,1222,Gazprom Energy,M3 3GY,0
Hra Expenditure,Repairs And Maintenance,Responsive Void Repairs,Gas,GAS SUPPLY,05/08/2022,REDACTED INVOICE NUMBER,158859,223.58,Revenue,1222,Gazprom Energy,M3 3GY,0
Hra Expenditure,Repairs And Maintenance,Responsive Void Repairs,Gas,GAS SUPPLY,09/08/2022,REDACTED INVOICE NUMBER,163129,97.51,Revenue,1222,Gazprom Energy,M3 3GY,0
Hra Expenditure,Special Services,Chichester House,Gas,GAS SUPPLY,09/08/2022,REDACTED INVOICE NUMBER,163353,687.7,Revenue,1222,Gazprom Energy,M3 3GY,0
Hra Expenditure,Special Services,Communal Heating,Gas,GAS SUPPLY,09/08/2022,REDACTED INVOICE NUMBER,163353,294.73,Revenue,1222,Gazprom Energy,M3 3GY,0
Hra Expenditure,Special Services,Communal Heating,Gas,GAS SUPPLY,23/08/2022,REDACTED INVOICE NUMBER,163348,577.97,Revenue,1222,Gazprom Energy,M3 3GY,0
Hra Expenditure,Special Services,Drake House,Gas,GAS SUPPLY,23/08/2022,REDACTED INVOICE NUMBER,163901,-331.31,Revenue,1222,Gazprom Energy,M3 3GY,0
Hra Expenditure,Special Services,Four Oaks,Gas,GAS SUPPLY,23/08/2022,REDACTED INVOICE NUMBER,163440,-666.18,Revenue,1222,Gazprom Energy,M3 3GY,0
Hra Expenditure,Special Services,Four Oaks,Gas,GAS SUPPLY,23/08/2022,REDACTED INVOICE NUMBER,163436,1290.22,Revenue,1222,Gazprom Energy,M3 3GY,0
Hra Expenditure,Special Services,Four Oaks,Gas,GAS SUPPLY,23/08/2022,REDACTED INVOICE NUMBER,163438,-837.77,Revenue,1222,Gazprom Energy,M3 3GY,0
Hra Expenditure,Special Services,Four Oaks,Gas,GAS SUPPLY,23/08/2022,REDACTED INVOICE NUMBER,163437,-927.78,Revenue,1222,Gazprom Energy,M3 3GY,0
Hra Expenditure,Special Services,Four Oaks,Gas,GAS SUPPLY,23/08/2022,REDACTED INVOICE NUMBER,163626,-394.51,Revenue,1222,Gazprom Energy,M3 3GY,0
Hra Expenditure,Special Services,Four Oaks,Gas,GAS SUPPLY,23/08/2022,REDACTED INVOICE NUMBER,163439,-831.09,Revenue,1222,Gazprom Energy,M3 3GY,0
Hra Expenditure,Special Services,Four Oaks,Gas,GAS SUPPLY,23/08/2022,REDACTED INVOICE NUMBER,163441,-536.64,Revenue,1222,Gazprom Energy,M3 3GY,0
Hra Expenditure,Special Services,Oldfields,Gas,GAS SUPPLY,23/08/2022,REDACTED INVOICE NUMBER,163348,1336.56,Revenue,1222,Gazprom Energy,M3 3GY,0
Hra Expenditure,Special Services,Victoria Court,Gas,GAS SUPPLY,23/08/2022,REDACTED INVOICE NUMBER,163348,1697.79,Revenue,1222,Gazprom Energy,M3 3GY,0
Director Of Environment,Depot Management & Admin,Depot Management & Admin,Gas,GAS SUPPLY,26/08/2022,REDACTED INVOICE NUMBER,164490,62.54,Revenue,1222,Gazprom Energy,M3 3GY,0
Hra Expenditure,Special Services,Communal Heating,Gas,GAS SUPPLY,26/08/2022,REDACTED INVOICE NUMBER,164220,545.64,Revenue,1222,Gazprom Energy,M3 3GY,0
Hra Expenditure,Special Services,Communal Heating,Gas,GAS SUPPLY,26/08/2022,REDACTED INVOICE NUMBER,164221,82.97,Revenue,1222,Gazprom Energy,M3 3GY,0
Hra Expenditure,Special Services,Oldfields,Gas,GAS SUPPLY,26/08/2022,REDACTED INVOICE NUMBER,164220,1261.78,Revenue,1222,Gazprom Energy,M3 3GY,0
Hra Expenditure,Special Services,The Gables,Gas,GAS SUPPLY,26/08/2022,REDACTED INVOICE NUMBER,164221,312.12,Revenue,1222,Gazprom Energy,M3 3GY,0
Hra Expenditure,Special Services,Victoria Court,Gas,GAS SUPPLY,26/08/2022,REDACTED INVOICE NUMBER,164220,1602.8,Revenue,1222,Gazprom Energy,M3 3GY,0
Capex Director Of Environment,Other Environmental Services,Disabled Facilities Grant,Grants - General,DISABLED FACILITIES GRANT,19/08/2022,REDACTED INVOICE NUMBER,163130,6041,Capital,25620,Gb Adaptions Ltd,CM7 3HY,0
Director Of Environment,Waste Management,Refuse Waste,Equipment & Tools - R&M,REFUSE BAGS,02/08/2022,REDACTED INVOICE NUMBER,163583,715.05,Revenue,25265,General Business Holdings Ltd,CM8 3DH,0
Director Of Environment,Waste Management,Refuse Waste,Equipment & Tools - R&M,REFUSE BAGS,02/08/2022,REDACTED INVOICE NUMBER,163582,333.15,Revenue,25265,General Business Holdings Ltd,CM8 3DH,0
Director Of Environment,Waste Management,Refuse Waste,Equipment & Tools - R&M,CREDIT NOTE,02/08/2022,REDACTED INVOICE NUMBER,160073,-10.55,Revenue,25265,General Business Holdings Ltd,CM8 3DH,0
Director Of Environment,Waste Management,Refuse Waste,Equipment & Tools - R&M,REFUSE BAGS,26/08/2022,REDACTED INVOICE NUMBER,163815,417.15,Revenue,25265,General Business Holdings Ltd,CM8 3DH,0
Director Of Environment,Waste Management,Refuse Waste,Equipment & Tools - R&M,WASTE BAGS,30/08/2022,REDACTED INVOICE NUMBER,163713,491.9,Revenue,25265,General Business Holdings Ltd,CM8 3DH,0
Director Of Environment,Cemeteries,Cemeteries,Purchases - Benches,PLAQUE AND MOTIF,09/08/2022,REDACTED INVOICE NUMBER,163812,99,Revenue,27104,Granart Limited,SK23 9UF,0
Balance Sheet,Balance Sheet,Balance Sheet,Cis Contractors,CIS REFUND,23/08/2022,REDACTED INVOICE NUMBER,163839,583.2,Revenue,1277,Grassform Plant Hire Ltd,CM4 0NT,0
Director Corporate Resources,Asset Management,Asset Management,R&M Bldgs - General,Carex Soap,02/08/2022,REDACTED INVOICE NUMBER,162575,123.92,Revenue,28558,Greenzest Ltd,RG17 0EY,0
Director Corporate Resources,Asset Management,Asset Management,R&M Bldgs - General,Soap dispensers to Community Hall,09/08/2022,REDACTED INVOICE NUMBER,162648,558.72,Revenue,28558,Greenzest Ltd,RG17 0EY,0
Director Corporate Resources,Asset Management,Asset Management,Search Fees,LAND REG DD'S JULY 2022,12/08/2022,REDACTED INVOICE NUMBER,163935,147,Revenue,22013,H M Land Registry,.,0
Director Of Planning & Economy,Planning Development Managemt,Planning Development Managemt,Search Fees,LAND REG DD'S JULY 2022,12/08/2022,REDACTED INVOICE NUMBER,163935,102,Revenue,22013,H M Land Registry,.,0
Hra Expenditure,Supervision And Management,Rent Collection & Recovery,Search Fees,LAND REG DD'S JULY 2022,12/08/2022,REDACTED INVOICE NUMBER,163935,9,Revenue,22013,H M Land Registry,.,0
Director Of Environment,Open Spaces,Recreation Areas,R&M Grounds - Play Equipment,PARTS,19/08/2022,REDACTED INVOICE NUMBER,164095,980,Revenue,1310,Hags Smp,YO8 8AP,0
Capex Director Of Housing,Housing - Affordable Housing,17 Crescent Road,Enhancements,CRESCENT ROAD - CONVERSION,02/08/2022,REDACTED INVOICE NUMBER,163481,2400,Capital,28405,Hamson Barron Smith Ltd,NR6 6EQ,0
Capex Director Of Housing,Housing - Affordable Housing,17 Crescent Road,Enhancements,CRESCENT ROAD - CONVERSION,02/08/2022,REDACTED INVOICE NUMBER,163482,3610,Capital,28405,Hamson Barron Smith Ltd,NR6 6EQ,0
Capex Director Of Housing,Housing - Affordable Housing,17 Crescent Road,Enhancements,CRESCENT ROAD CONVERSION,26/08/2022,REDACTED INVOICE NUMBER,162404,2500,Capital,28405,Hamson Barron Smith Ltd,NR6 6EQ,0
Capex Director Of Housing,Housing - Affordable Housing,17 Crescent Road,Enhancements,PROFESSIONAL FEES,26/08/2022,REDACTED INVOICE NUMBER,163589,2500,Capital,28405,Hamson Barron Smith Ltd,NR6 6EQ,0
Balance Sheet,Balance Sheet,Balance Sheet,Fuel Stores,REFURB PIT JACK - DEPOT,19/08/2022,REDACTED INVOICE NUMBER,163588,1936.46,Revenue,1322,Haps Garage Equipment Ltd,SS7 3YT,0
Director Of Environment,Vehicle Fleet Management,Vehicle Fleet Management,Vehicle R&M - External,MOT,05/08/2022,REDACTED INVOICE NUMBER,159457,213,Revenue,1329,Harris Commercial Repairs Limited,RM20 4AU,0
Director Of Environment,Vehicle Fleet Management,Vehicle Fleet Management,Vehicle R&M - External,MOT,05/08/2022,REDACTED INVOICE NUMBER,160199,213,Revenue,1329,Harris Commercial Repairs Limited,RM20 4AU,0
Director Of Environment,Vehicle Fleet Management,Vehicle Fleet Management,Vehicle Replacement Parts,VEHICLE PARTS,12/08/2022,REDACTED INVOICE NUMBER,162780,356.73,Revenue,1329,Harris Commercial Repairs Limited,RM20 4AU,0
Director Of Environment,Vehicle Fleet Management,Vehicle Fleet Management,Vehicle Replacement Parts,VEHICLE PARTS,12/08/2022,REDACTED INVOICE NUMBER,162781,327,Revenue,1329,Harris Commercial Repairs Limited,RM20 4AU,0
Director Of Environment,Vehicle Fleet Management,Vehicle Fleet Management,Vehicle Replacement Parts,VEHICLE PARTS,12/08/2022,REDACTED INVOICE NUMBER,162929,723.18,Revenue,1329,Harris Commercial Repairs Limited,RM20 4AU,0
Director Of Environment,Vehicle Fleet Management,Vehicle Fleet Management,Vehicle Replacement Parts,VEHICLE PARTS,12/08/2022,REDACTED INVOICE NUMBER,162928,90,Revenue,1329,Harris Commercial Repairs Limited,RM20 4AU,0
Director Of Planning & Economy,Planning Development Managemt,Planning Development Managemt,Subscriptions,Planning magazine,19/08/2022,REDACTED INVOICE NUMBER,162502,395,Revenue,1344,Haymarket Media Group Ltd,TW1 3SP,0
Hra Expenditure,Supervision And Management,Rent Collection & Recovery,Legal Fees,WARRANT OF POSSESSION,19/08/2022,REDACTED INVOICE NUMBER,163828,130,Revenue,1397,Hmcts,NP20 9FN,0
Director Of Environment,Grounds Maintenance,Grounds Maintenance,Plant & Mcy - Repairs & Maint,Remove and  sharpen blades,02/08/2022,REDACTED INVOICE NUMBER,163052,60,Revenue,1419,Hopedima Engineering Ltd,CM14 5SU,0
Director Of Environment,Grounds Maintenance,Grounds Maintenance,Plant & Mcy - Repairs & Maint,JOHN DEERE REPAIRS,09/08/2022,REDACTED INVOICE NUMBER,163708,655.96,Revenue,1419,Hopedima Engineering Ltd,CM14 5SU,0
Director Of Environment,Grounds Maintenance,Grounds Maintenance,Purchases - General Equipment,HEDGE TRIMMER,09/08/2022,REDACTED INVOICE NUMBER,163375,311.13,Revenue,1419,Hopedima Engineering Ltd,CM14 5SU,0
Director Of Environment,Grounds Maintenance,Grounds Maintenance,Vehicle R&M - External,JOHN DEERE REPAIRS,09/08/2022,REDACTED INVOICE NUMBER,163732,95.76,Revenue,1419,Hopedima Engineering Ltd,CM14 5SU,0
Director Of Environment,Golf Course,Golf Course,Vehicle R&M - External,JOHN DEERE REPAIRS - HARTSWOOD,26/08/2022,REDACTED INVOICE NUMBER,164286,351.78,Revenue,1419,Hopedima Engineering Ltd,CM14 5SU,0
Hra Expenditure,Supervision And Management,Managing Tenancies,Subscriptions,HOMESWAPPERS LIST. DEC '21 - FEB '22,09/08/2022,REDACTED INVOICE NUMBER,163470,185.1,Revenue,1425,Housing Partners Limited,EC2V 8EA,0
Hra Expenditure,Supervision And Management,Managing Tenancies,Subscriptions,Homeswapper Lists,16/08/2022,REDACTED INVOICE NUMBER,164078,185.1,Revenue,1425,Housing Partners Limited,EC2V 8EA,0
Director Housing & Enforcement,Community Safety,Corporate Enforcement,Enforcement,REBILLING OF VAT - JUN '22,12/08/2022,REDACTED INVOICE NUMBER,162413,0,Revenue,28449,Hsg Facilities Management Ltd,CF24 5EL,0
Director Housing & Enforcement,Community Safety,Corporate Enforcement,Enforcement,REBILLING OF VAT - JUL '22,30/08/2022,REDACTED INVOICE NUMBER,163621,0,Revenue,28449,Hsg Facilities Management Ltd,CF24 5EL,0
Director Digital & Customer En,Digital Servs & Transformation,Ict Services,Network Maintenance,Firewall support 1 9/06/2022,19/08/2022,REDACTED INVOICE NUMBER,163223,2016.75,Revenue,1467,Hytec Information Security Ltd,TW11 9AA,0
Director Of Environment,Cemeteries,Cemeteries,Subscriptions,COPORATE MEMBERSHIP - 22/23,26/08/2022,REDACTED INVOICE NUMBER,163489,455,Revenue,1478,Iccm,E12 5DQ,0
Director Of Environment,Health & Food Safety,Food & Health Support,Contracted Services,Public Access 34 upgrade,09/08/2022,REDACTED INVOICE NUMBER,162739,3800,Revenue,1485,Idox Software Ltd,G1 3RS,0
Director Of Environment,Health & Food Safety,Food & Health Support,Contracted Services,Upgrade,09/08/2022,REDACTED INVOICE NUMBER,162740,4750,Revenue,1485,Idox Software Ltd,G1 3RS,0
Director Corporate Resources,Office Accommodation,Office Accommodation,Postage Costs Direct,Imail Hybrid Premium,12/08/2022,REDACTED INVOICE NUMBER,163830,97.23,Revenue,5008,Imail Comms Ltd,CV3 4LA,0
Director Corporate Resources,Office Accommodation,Office Accommodation,Postage Costs Direct,Imail Hybrid Premium,12/08/2022,REDACTED INVOICE NUMBER,163853,48.79,Revenue,5008,Imail Comms Ltd,CV3 4LA,0
Director Corporate Resources,Office Accommodation,Office Accommodation,Postage Costs Direct,Imail Hybrid Premium,12/08/2022,REDACTED INVOICE NUMBER,163831,83.82,Revenue,5008,Imail Comms Ltd,CV3 4LA,0
Director Corporate Resources,Office Accommodation,Office Accommodation,Postage Costs Direct,Imail Hybrid Premium,19/08/2022,REDACTED INVOICE NUMBER,164103,37.48,Revenue,5008,Imail Comms Ltd,CV3 4LA,0
Director Corporate Resources,Office Accommodation,Office Accommodation,Postage Costs Direct,Imail Hybrid Premium,26/08/2022,REDACTED INVOICE NUMBER,164548,33.14,Revenue,5008,Imail Comms Ltd,CV3 4LA,0
Director Of Environment,Vehicle Fleet Management,Vehicle Fleet Management,Vehicle R&M - External,CAMERA REPAIR,26/08/2022,REDACTED INVOICE NUMBER,163608,357.5,Revenue,1516,Innovative Safety Systems Limited,CV3 2RL,0
Director Of Environment,Vehicle Fleet Management,Vehicle Fleet Management,Vehicle Replacement Parts,Proximity Switch N/O,12/08/2022,REDACTED INVOICE NUMBER,162795,84.6,Revenue,1533,Interwaste Municipal Limited,WV10 7PA,0
Director Of Environment,Vehicle Fleet Management,Vehicle Fleet Management,Vehicle Replacement Parts,VEHICLE PARTS,12/08/2022,REDACTED INVOICE NUMBER,162892,493.95,Revenue,1533,Interwaste Municipal Limited,WV10 7PA,0
Director Corporate Resources,Asset Management,Asset Management,R&M Bldgs - General,Asbestos Management Survey ,19/08/2022,REDACTED INVOICE NUMBER,163609,300,Revenue,28545,Ismay Asbestos Services,SS14 2PS,0
Director Of Environment,"Communities, Health & Leisure",Family Fun Days,Contracted Services,FAMILY FUN DAY,16/08/2022,REDACTED INVOICE NUMBER,163851,170,Revenue,225959P,REDACTED PERSONAL DATA,REDACTED,0
Director Of Environment,"Communities, Health & Leisure",Family Fun Days,Contracted Services,Punch and Judy,16/08/2022,REDACTED INVOICE NUMBER,163991,800,Revenue,1586,REDACTED PERSONAL DATA,REDACTED,0
Capex Director Of Housing,Housing - Affordable Housing,Brookfield Project,Enhancements,REMOVALS,26/08/2022,REDACTED INVOICE NUMBER,163941,450,Capital,1623,Jeakins Domestic + Comm Removals Ltd,SS15 6PZ,0
Director Housing & Enforcement,Homelessness,Homelessness Prevention,Removal Costs,REMOVAL COSTS,26/08/2022,REDACTED INVOICE NUMBER,163590,480,Revenue,1623,Jeakins Domestic + Comm Removals Ltd,SS15 6PZ,0
Director Housing & Enforcement,Homelessness,Homelessness Prevention,Rent Deposit Scheme,REMOVAL COSTS ,26/08/2022,REDACTED INVOICE NUMBER,163814,696,Revenue,1623,Jeakins Domestic + Comm Removals Ltd,SS15 6PZ,0
Director Of Environment,Vehicle Fleet Management,Vehicle Fleet Management,Vehicle Replacement Parts,VEHICLE PARTS ,05/08/2022,REDACTED INVOICE NUMBER,163379,399.5,Revenue,25305,Jennings Engineering Supplies Ltd,CM3 6LG,0
Balance Sheet,Balance Sheet,Balance Sheet,Agency - Csp,CRIME PREVENTION SUPPLIES,12/08/2022,REDACTED INVOICE NUMBER,163434,468.5,Revenue,24719,Jne Security Ltd,LL12 8LX,0
Director Corporate Resources,Design And Print Services,Design & Print Services,Other Fees & Service,Colowave 500 monthly service,26/08/2022,REDACTED INVOICE NUMBER,163997,175,Revenue,28945,John E Wright Co. Limited,NG1 3NF,0
Capex Director Of Housing,Housing - Affordable Housing,Garage Site Development,Enhancements,SHDP - JULY '22,16/08/2022,REDACTED INVOICE NUMBER,163600,5778.9,Capital,28185,Joseph Hardy & Company Ltd,CM4 9TA,0
Director Of Environment,Open Spaces,Recreation Areas,R&M Grounds - Play Equipment,REPLACE GATE CLOSURE - KG PLAY AREA,30/08/2022,REDACTED INVOICE NUMBER,163645,635,Revenue,1684,Just Fencing + Landscaping Services,SS12 OJX,0
Director Of Environment,Parking,Parking Services,Uniforms,BOOTS,26/08/2022,REDACTED INVOICE NUMBER,163463,243.8,Revenue,1721,Keltic Ltd,WS2 8TL,0
Director Of Planning & Economy,Planning Development Managemt,Planning Development Managemt,Other Fees & Service,Bennetts Farm (Legacy Cases),26/08/2022,REDACTED INVOICE NUMBER,163593,3500,Revenue,28826,Kew Property Consultants Limited,CF5 2EX,0
Director Of Planning & Economy,Planning Development Managemt,Planning Development Managemt,Other Fees & Service,PLANNING OFFICER FOR LEGACY CASES,26/08/2022,REDACTED INVOICE NUMBER,163937,2750,Revenue,28826,Kew Property Consultants Limited,CF5 2EX,0
Director Of Planning & Economy,Planning Development Managemt,Planning Development Managemt,Other Fees & Service,PLANNING OFFICER FOR LEGACY CASES,26/08/2022,REDACTED INVOICE NUMBER,163936,1750,Revenue,28826,Kew Property Consultants Limited,CF5 2EX,0
Director Of Planning & Economy,Planning Development Managemt,Planning Development Managemt,Other Fees & Service,Swallow Cross Farm (Legacy,26/08/2022,REDACTED INVOICE NUMBER,163594,3500,Revenue,28826,Kew Property Consultants Limited,CF5 2EX,0
Director Housing & Enforcement,Community Safety,Corporate Enforcement,Vehicle Hire,HIRE CHARGES. 26.3.22 - 25.4.22,19/08/2022,REDACTED INVOICE NUMBER,163942,382.41,Revenue,28539,Kinto Uk,PO6 3EN,0
Director Housing & Enforcement,Homelessness,B&B Accommodation,B & B Charges (Homelessness),HOMELESSNESS PREVENTION,23/08/2022,REDACTED INVOICE NUMBER,163442,350,Revenue,24333,Lampwick Care,SS1 2AS,0
Director Housing & Enforcement,Homelessness,B&B Accommodation,B & B Charges (Homelessness),HOMELESSNESS PREVENTION,23/08/2022,REDACTED INVOICE NUMBER,163612,350,Revenue,24333,Lampwick Care,SS1 2AS,0
Director Housing & Enforcement,Homelessness,B&B Accommodation,B & B Charges (Homelessness),HOMELESSNESS PREVENTION,23/08/2022,REDACTED INVOICE NUMBER,163829,350,Revenue,24333,Lampwick Care,SS1 2AS,0
Director Housing & Enforcement,Homelessness,B&B Accommodation,B & B Charges (Homelessness),HOMELESSNESS PREVENTION,23/08/2022,REDACTED INVOICE NUMBER,164288,350,Revenue,24333,Lampwick Care,SS1 2AS,0
Director Housing & Enforcement,Homelessness,B&B Accommodation,B & B Charges (Homelessness),HOMELESSNESS PREVENTION,23/08/2022,REDACTED INVOICE NUMBER,163326,350,Revenue,24333,Lampwick Care,SS1 2AS,0
Director Of Environment,Street Services,Ecc Weed Control,R&M Grounds - Weed Control,Control of invasive weeds,05/08/2022,REDACTED INVOICE NUMBER,162700,1782.5,Revenue,1782,Languard Limited,LE17 6JN,0
Director Corporate Resources,Corporate Management,Corporate Management Costs,Bank Charges,Bankers Almanac UK Sort Codes,12/08/2022,REDACTED INVOICE NUMBER,163949,204.75,Revenue,1823,Lexis Nexis Butterworths Customer Service,BT10 9AS,0
Director Of Environment,Golf Course,Golf Course,Bank Charges,CHIP AND PIN - JULY '22,12/08/2022,REDACTED INVOICE NUMBER,163900,336.19,Revenue,27902,Lloyds Bank (Pg),.,0
Director Of Environment,Dog Control,Dog Control,Kennel & Vet Fees,KENNEL COSTS,12/08/2022,REDACTED INVOICE NUMBER,163819,840,Revenue,1913,M.A. Robinson,CM15 0LH,0
Capex Director Of Environment,S106 North Road Play Area,S106 North Road Play Area,Enhancements,GROUNDPLATES ,02/08/2022,REDACTED INVOICE NUMBER,163220,4005,Capital,1953,Marmax Products,DH9 9QX,0
Director Corporate Resources,Council Tax & Nndr,Council Tax Collection,Baliff Fees,VAT ON FEES,12/08/2022,REDACTED INVOICE NUMBER,163684,0,Revenue,1956,Marston Group Limited,CM16 9EB,0
Capex Director Of Housing,Housing - Affordable Housing,Ingleton House,Enhancements,MARKET VALUATION - INGLETON HOUSE,16/08/2022,REDACTED INVOICE NUMBER,163695,1500,Capital,1969,Mass & Co Ltd,CM14 4RG,0
Director Of Environment,Vehicle Fleet Management,Vehicle Fleet Management,Equipment - Lease Rentals,TRACK AND TRACE - AUG '22,30/08/2022,REDACTED INVOICE NUMBER,163629,1095.27,Revenue,1971,Masternaut (Uk) Ltd,LS25 3DF,0
Director Of Environment,Vehicle Fleet Management,Vehicle Fleet Management,Equipment - Lease Rentals,TRACK AND TRACE - JUL '22,30/08/2022,REDACTED INVOICE NUMBER,163628,1052.87,Revenue,1971,Masternaut (Uk) Ltd,LS25 3DF,0
Director Housing & Enforcement,Homelessness,Private Sector Acc Leased,Rent/Hire Of Buildings,PRIVATE SECTOR LEASING,09/08/2022,REDACTED INVOICE NUMBER,163614,600,Revenue,2339,REDACTED PERSONAL DATA,REDACTED,0
Capex Director Of Housing,Housing - Affordable Housing,Brookfield Project,Enhancements,ENHANCEMENTS,12/08/2022,REDACTED INVOICE NUMBER,163899,4753.55,Capital,225961P,REDACTED PERSONAL DATA,REDACTED,0
Director Housing & Enforcement,Homelessness,Private Sector Acc Leased,Compensation,PRIVATE SECTOR LEASING,05/08/2022,REDACTED INVOICE NUMBER,163756,4000,Revenue,2968,REDACTED PERSONAL DATA,REDACTED,0
Director Digital & Customer En,Digital Servs & Transformation,Ict Services,Telephones - General,FibreStream,09/08/2022,REDACTED INVOICE NUMBER,162384,43.72,Revenue,4022,Multidata,SN6 8EY,0
Director Digital & Customer En,Digital Servs & Transformation,Ict Services,Telephones - General,PHONE CHARGES,09/08/2022,REDACTED INVOICE NUMBER,162276,932.55,Revenue,4022,Multidata,SN6 8EY,0
Director Digital & Customer En,Digital Servs & Transformation,Ict Services,Telephones - General,PHONE CHARGES,30/08/2022,REDACTED INVOICE NUMBER,163595,43.72,Revenue,4022,Multidata,SN6 8EY,0
Director Digital & Customer En,Digital Servs & Transformation,Ict Services,Telephones - General,PHONE CHARGES,30/08/2022,REDACTED INVOICE NUMBER,163599,932.55,Revenue,4022,Multidata,SN6 8EY,0
Director Of Environment,Vehicle Fleet Management,Vehicle Fleet Management,Vehicle - Tyres,PUNCTURE REPAIR INCLUSIVE,05/08/2022,REDACTED INVOICE NUMBER,163331,65,Revenue,4083,Nicks Tyre Services Ltd,CM15 9SB,0
Director Of Environment,Vehicle Fleet Management,Vehicle Fleet Management,Vehicle - Tyres,VEHICLE REPAIRS,16/08/2022,REDACTED INVOICE NUMBER,162512,65,Revenue,4083,Nicks Tyre Services Ltd,CM15 9SB,0
Director Housing & Enforcement,Community Alarms,Community Alarms Service,Contracted Services,MONITORING OF CARELINE,23/08/2022,REDACTED INVOICE NUMBER,163433,107.64,Revenue,4093,North Hertfordshire District Council,SG6 3JF,0
Director Corporate Resources,Asset Management,Asset Management,R&M Bldgs - General,LEGIONELLA RISK ASSESSMENT - WILLOWBROOK,12/08/2022,REDACTED INVOICE NUMBER,163488,299,Revenue,4101,Northumbrian Water Limited,DH1 9WF,0
Capex Director Of Housing,Housing - Hra,Housing Stock - Water,Enhancements,PIPE RENEWAL,16/08/2022,REDACTED INVOICE NUMBER,163689,913.16,Capital,4101,Northumbrian Water Limited,DH1 9WF,0
Director Housing & Enforcement,Housing Advice & Enabling,Housing Advice,Medical Reports,MEDICAL ADVICE - HOUSING,30/08/2022,REDACTED INVOICE NUMBER,163988,365,Revenue,4103,Nowmedical,W4 5LH,0
Capex Director Of Housing,Housing - Affordable Housing,Harewood Rd Dev,Enhancements,HAREWOOD ROAD - REDEVELOPMENT,30/08/2022,REDACTED INVOICE NUMBER,163892,21836,Capital,28307,Nps Property Consultants Ltd,NR6 6EQ,0
Balance Sheet,Balance Sheet,Balance Sheet,Homes For Ukraine,HOMES FOR UKRAINE,02/08/2022,REDACTED INVOICE NUMBER,163604,600,Revenue,225556P,REDACTED PERSONAL DATA,REDACTED,0
Director Housing & Enforcement,Cctv,Community Safety - Cctv,Electricity,ELECTRICITY SUPPLY,02/08/2022,REDACTED INVOICE NUMBER,163193,142.61,Revenue,4145,Opus Energy (Corporate) Ltd,OX2 7JH,0
Director Of Environment,"Communities, Health & Leisure",Christmas Lights & Decorations,Electricity,ELECTRICITY SUPPLY,02/08/2022,REDACTED INVOICE NUMBER,163197,2.29,Revenue,4145,Opus Energy (Corporate) Ltd,OX2 7JH,0
Director Of Environment,Parking,Parking Services,Electricity,ELECTRICITY SUPPLY,02/08/2022,REDACTED INVOICE NUMBER,163159,3492.27,Revenue,4145,Opus Energy (Corporate) Ltd,OX2 7JH,0
Director Of Environment,Parking,Parking Services,Electricity,ELECTRICITY SUPPLY,02/08/2022,REDACTED INVOICE NUMBER,163194,120,Revenue,4145,Opus Energy (Corporate) Ltd,OX2 7JH,0
Director Of Environment,Parking,Parking Services,Electricity,ELECTRICITY SUPPLY,02/08/2022,REDACTED INVOICE NUMBER,163064,21,Revenue,4145,Opus Energy (Corporate) Ltd,OX2 7JH,0
Director Of Environment,Street Services,Public Conveniences,Gas,GAS SUPPLY,05/08/2022,REDACTED INVOICE NUMBER,163180,28.09,Revenue,4145,Opus Energy (Corporate) Ltd,OX2 7JH,0
Hra Expenditure,Special Services,Communal Lighting,Electricity,ELECTRICITY SUPPLY,05/08/2022,REDACTED INVOICE NUMBER,163118,27.23,Revenue,4145,Opus Energy (Corporate) Ltd,OX2 7JH,0
Hra Expenditure,Special Services,Communal Lighting,Electricity,ELECTRICITY SUPPLY,05/08/2022,REDACTED INVOICE NUMBER,163205,39.16,Revenue,4145,Opus Energy (Corporate) Ltd,OX2 7JH,0
Hra Expenditure,Special Services,Communal Lighting,Electricity,ELECTRICITY SUPPLY,05/08/2022,REDACTED INVOICE NUMBER,163126,10.7,Revenue,4145,Opus Energy (Corporate) Ltd,OX2 7JH,0
Hra Expenditure,Special Services,Communal Lighting,Electricity,ELECTRICITY SUPPLY,05/08/2022,REDACTED INVOICE NUMBER,163095,11.87,Revenue,4145,Opus Energy (Corporate) Ltd,OX2 7JH,0
Hra Expenditure,Special Services,Communal Lighting,Electricity,ELECTRICITY SUPPLY,05/08/2022,REDACTED INVOICE NUMBER,163137,23.11,Revenue,4145,Opus Energy (Corporate) Ltd,OX2 7JH,0
Hra Expenditure,Special Services,Communal Lighting,Electricity,ELECTRICITY SUPPLY,05/08/2022,REDACTED INVOICE NUMBER,163143,88.44,Revenue,4145,Opus Energy (Corporate) Ltd,OX2 7JH,0
Hra Expenditure,Special Services,Communal Lighting,Electricity,ELECTRICITY SUPPLY,05/08/2022,REDACTED INVOICE NUMBER,163162,22.93,Revenue,4145,Opus Energy (Corporate) Ltd,OX2 7JH,0
Hra Expenditure,Special Services,Communal Lighting,Electricity,ELECTRICITY SUPPLY,05/08/2022,REDACTED INVOICE NUMBER,163151,57.19,Revenue,4145,Opus Energy (Corporate) Ltd,OX2 7JH,0
Hra Expenditure,Special Services,Communal Lighting,Electricity,ELECTRICITY SUPPLY,05/08/2022,REDACTED INVOICE NUMBER,163133,15.56,Revenue,4145,Opus Energy (Corporate) Ltd,OX2 7JH,0
Hra Expenditure,Special Services,Communal Lighting,Electricity,ELECTRICITY SUPPLY,05/08/2022,REDACTED INVOICE NUMBER,163111,13.25,Revenue,4145,Opus Energy (Corporate) Ltd,OX2 7JH,0
Hra Expenditure,Special Services,Communal Lighting,Electricity,ELECTRICITY SUPPLY,05/08/2022,REDACTED INVOICE NUMBER,163136,30.52,Revenue,4145,Opus Energy (Corporate) Ltd,OX2 7JH,0
Hra Expenditure,Special Services,Communal Lighting,Electricity,ELECTRICITY SUPPLY,05/08/2022,REDACTED INVOICE NUMBER,163135,80.52,Revenue,4145,Opus Energy (Corporate) Ltd,OX2 7JH,0
Hra Expenditure,Special Services,Communal Lighting,Electricity,ELECTRICITY SUPPLY,05/08/2022,REDACTED INVOICE NUMBER,163085,43.39,Revenue,4145,Opus Energy (Corporate) Ltd,OX2 7JH,0
Hra Expenditure,Special Services,Communal Lighting,Electricity,ELECTRICITY SUPPLY,05/08/2022,REDACTED INVOICE NUMBER,163134,31.01,Revenue,4145,Opus Energy (Corporate) Ltd,OX2 7JH,0
Hra Expenditure,Special Services,Communal Lighting,Electricity,ELECTRICITY SUPPLY,05/08/2022,REDACTED INVOICE NUMBER,163163,34.43,Revenue,4145,Opus Energy (Corporate) Ltd,OX2 7JH,0
Hra Expenditure,Special Services,Communal Lighting,Electricity,ELECTRICITY SUPPLY,05/08/2022,REDACTED INVOICE NUMBER,163164,33.19,Revenue,4145,Opus Energy (Corporate) Ltd,OX2 7JH,0
Hra Expenditure,Special Services,Communal Lighting,Electricity,ELECTRICITY SUPPLY,05/08/2022,REDACTED INVOICE NUMBER,163100,10.46,Revenue,4145,Opus Energy (Corporate) Ltd,OX2 7JH,0
Hra Expenditure,Special Services,Communal Lighting,Electricity,ELECTRICITY SUPPLY,05/08/2022,REDACTED INVOICE NUMBER,163206,68.83,Revenue,4145,Opus Energy (Corporate) Ltd,OX2 7JH,0
Hra Expenditure,Special Services,Communal Lighting,Electricity,ELECTRICITY SUPPLY,05/08/2022,REDACTED INVOICE NUMBER,163093,8.76,Revenue,4145,Opus Energy (Corporate) Ltd,OX2 7JH,0
Hra Expenditure,Special Services,Communal Lighting,Electricity,ELECTRICITY SUPPLY,05/08/2022,REDACTED INVOICE NUMBER,163139,55.86,Revenue,4145,Opus Energy (Corporate) Ltd,OX2 7JH,0
Hra Expenditure,Special Services,Communal Lighting,Electricity,ELECTRICITY SUPPLY,05/08/2022,REDACTED INVOICE NUMBER,163075,166.22,Revenue,4145,Opus Energy (Corporate) Ltd,OX2 7JH,0
Hra Expenditure,Special Services,Communal Lighting,Electricity,ELECTRICITY SUPPLY,05/08/2022,REDACTED INVOICE NUMBER,163131,59.26,Revenue,4145,Opus Energy (Corporate) Ltd,OX2 7JH,0
Hra Expenditure,Special Services,Communal Lighting,Electricity,ELECTRICITY SUPPLY,05/08/2022,REDACTED INVOICE NUMBER,163186,117.72,Revenue,4145,Opus Energy (Corporate) Ltd,OX2 7JH,0
Hra Expenditure,Special Services,Communal Lighting,Electricity,ELECTRICITY SUPPLY,05/08/2022,REDACTED INVOICE NUMBER,163098,722.47,Revenue,4145,Opus Energy (Corporate) Ltd,OX2 7JH,0
Hra Expenditure,Special Services,Communal Lighting,Electricity,ELECTRICITY SUPPLY,05/08/2022,REDACTED INVOICE NUMBER,163127,233.12,Revenue,4145,Opus Energy (Corporate) Ltd,OX2 7JH,0
Hra Expenditure,Special Services,Communal Lighting,Electricity,ELECTRICITY SUPPLY,05/08/2022,REDACTED INVOICE NUMBER,163147,56.61,Revenue,4145,Opus Energy (Corporate) Ltd,OX2 7JH,0
Hra Expenditure,Special Services,Communal Lighting,Electricity,ELECTRICITY SUPPLY,05/08/2022,REDACTED INVOICE NUMBER,163101,123.19,Revenue,4145,Opus Energy (Corporate) Ltd,OX2 7JH,0
Hra Expenditure,Special Services,Communal Lighting,Electricity,ELECTRICITY SUPPLY,05/08/2022,REDACTED INVOICE NUMBER,163178,8.76,Revenue,4145,Opus Energy (Corporate) Ltd,OX2 7JH,0
Hra Expenditure,Special Services,Communal Lighting,Electricity,ELECTRICITY SUPPLY,05/08/2022,REDACTED INVOICE NUMBER,163105,154.93,Revenue,4145,Opus Energy (Corporate) Ltd,OX2 7JH,0
Hra Expenditure,Special Services,Communal Lighting,Electricity,ELECTRICITY SUPPLY,05/08/2022,REDACTED INVOICE NUMBER,163106,34.91,Revenue,4145,Opus Energy (Corporate) Ltd,OX2 7JH,0
Hra Expenditure,Special Services,Communal Lighting,Electricity,ELECTRICITY SUPPLY,05/08/2022,REDACTED INVOICE NUMBER,163142,15.28,Revenue,4145,Opus Energy (Corporate) Ltd,OX2 7JH,0
Hra Expenditure,Special Services,Communal Lighting,Electricity,ELECTRICITY SUPPLY,05/08/2022,REDACTED INVOICE NUMBER,163141,51.29,Revenue,4145,Opus Energy (Corporate) Ltd,OX2 7JH,0
Hra Expenditure,Special Services,Communal Lighting,Electricity,ELECTRICITY SUPPLY,05/08/2022,REDACTED INVOICE NUMBER,163071,93.74,Revenue,4145,Opus Energy (Corporate) Ltd,OX2 7JH,0
Hra Expenditure,Special Services,Communal Lighting,Electricity,ELECTRICITY SUPPLY,05/08/2022,REDACTED INVOICE NUMBER,163073,32.78,Revenue,4145,Opus Energy (Corporate) Ltd,OX2 7JH,0
Hra Expenditure,Special Services,Communal Lighting,Electricity,ELECTRICITY SUPPLY,05/08/2022,REDACTED INVOICE NUMBER,163177,8.76,Revenue,4145,Opus Energy (Corporate) Ltd,OX2 7JH,0
Hra Expenditure,Special Services,Communal Lighting,Electricity,ELECTRICITY SUPPLY,05/08/2022,REDACTED INVOICE NUMBER,162967,40.02,Revenue,4145,Opus Energy (Corporate) Ltd,OX2 7JH,0
Hra Expenditure,Special Services,Communal Lighting,Electricity,ELECTRICITY SUPPLY,05/08/2022,REDACTED INVOICE NUMBER,162966,17.28,Revenue,4145,Opus Energy (Corporate) Ltd,OX2 7JH,0
Hra Expenditure,Special Services,Communal Lighting,Electricity,ELECTRICITY SUPPLY,05/08/2022,REDACTED INVOICE NUMBER,162968,15.25,Revenue,4145,Opus Energy (Corporate) Ltd,OX2 7JH,0
Hra Expenditure,Special Services,Communal Lighting,Electricity,ELECTRICITY SUPPLY,05/08/2022,REDACTED INVOICE NUMBER,163109,35.35,Revenue,4145,Opus Energy (Corporate) Ltd,OX2 7JH,0
Hra Expenditure,Special Services,Communal Lighting,Electricity,ELECTRICITY SUPPLY,05/08/2022,REDACTED INVOICE NUMBER,163110,31.52,Revenue,4145,Opus Energy (Corporate) Ltd,OX2 7JH,0
Hra Expenditure,Special Services,Communal Lighting,Electricity,ELECTRICITY SUPPLY,05/08/2022,REDACTED INVOICE NUMBER,163113,34.35,Revenue,4145,Opus Energy (Corporate) Ltd,OX2 7JH,0
Hra Expenditure,Special Services,Communal Lighting,Electricity,ELECTRICITY SUPPLY,05/08/2022,REDACTED INVOICE NUMBER,163148,36.86,Revenue,4145,Opus Energy (Corporate) Ltd,OX2 7JH,0
Hra Expenditure,Special Services,Communal Lighting,Electricity,ELECTRICITY SUPPLY,05/08/2022,REDACTED INVOICE NUMBER,163171,72.76,Revenue,4145,Opus Energy (Corporate) Ltd,OX2 7JH,0
Hra Expenditure,Special Services,Communal Lighting,Electricity,ELECTRICITY SUPPLY,05/08/2022,REDACTED INVOICE NUMBER,163173,17.69,Revenue,4145,Opus Energy (Corporate) Ltd,OX2 7JH,0
Hra Expenditure,Special Services,Communal Lighting,Electricity,ELECTRICITY SUPPLY,05/08/2022,REDACTED INVOICE NUMBER,163174,45.21,Revenue,4145,Opus Energy (Corporate) Ltd,OX2 7JH,0
Hra Expenditure,Special Services,Communal Lighting,Electricity,ELECTRICITY SUPPLY,05/08/2022,REDACTED INVOICE NUMBER,163083,17.57,Revenue,4145,Opus Energy (Corporate) Ltd,OX2 7JH,0
Hra Expenditure,Special Services,Communal Lighting,Electricity,ELECTRICITY SUPPLY,05/08/2022,REDACTED INVOICE NUMBER,163084,53.31,Revenue,4145,Opus Energy (Corporate) Ltd,OX2 7JH,0
Hra Expenditure,Special Services,Communal Lighting,Electricity,ELECTRICITY SUPPLY,05/08/2022,REDACTED INVOICE NUMBER,163195,89.82,Revenue,4145,Opus Energy (Corporate) Ltd,OX2 7JH,0
Hra Expenditure,Special Services,Communal Lighting,Electricity,ELECTRICITY SUPPLY,05/08/2022,REDACTED INVOICE NUMBER,163088,81.91,Revenue,4145,Opus Energy (Corporate) Ltd,OX2 7JH,0
Hra Expenditure,Special Services,Communal Lighting,Electricity,ELECTRICITY SUPPLY,05/08/2022,REDACTED INVOICE NUMBER,163166,34.74,Revenue,4145,Opus Energy (Corporate) Ltd,OX2 7JH,0
Hra Expenditure,Special Services,Communal Lighting,Protective Clothing,ELECTRICITY SUPPLY,05/08/2022,REDACTED INVOICE NUMBER,163094,14,Revenue,4145,Opus Energy (Corporate) Ltd,OX2 7JH,0
Hra Expenditure,Special Services,Sheltered Welfare Services,Electricity,ELECTRICITY SUPPLY,05/08/2022,REDACTED INVOICE NUMBER,163191,15.08,Revenue,4145,Opus Energy (Corporate) Ltd,OX2 7JH,0
Hra Expenditure,Special Services,Sheltered Welfare Services,Electricity,ELECTRICITY SUPPLY,05/08/2022,REDACTED INVOICE NUMBER,163190,13.19,Revenue,4145,Opus Energy (Corporate) Ltd,OX2 7JH,0
Director Of Environment,Vehicle Fleet Management,Vehicle Fleet Management,Electricity,ELECTRICITY SUPPLY,16/08/2022,REDACTED INVOICE NUMBER,163218,2588.77,Revenue,4145,Opus Energy (Corporate) Ltd,OX2 7JH,0
Director Of Environment,Vehicle Fleet Management,Vehicle Fleet Management,Electricity,ELECTRICITY SUPPLY,16/08/2022,REDACTED INVOICE NUMBER,162041,-1769.24,Revenue,4145,Opus Energy (Corporate) Ltd,OX2 7JH,0
Hra Expenditure,Special Services,Communal Lighting,Electricity,ELECTRICITY SUPPLY,16/08/2022,REDACTED INVOICE NUMBER,163234,-44.6,Revenue,4145,Opus Energy (Corporate) Ltd,OX2 7JH,0
Hra Expenditure,Special Services,Communal Lighting,Electricity,ELECTRICITY SUPPLY,16/08/2022,REDACTED INVOICE NUMBER,163238,-53.88,Revenue,4145,Opus Energy (Corporate) Ltd,OX2 7JH,0
Hra Expenditure,Special Services,Communal Lighting,Electricity,ELECTRICITY SUPPLY,16/08/2022,REDACTED INVOICE NUMBER,163236,-46.96,Revenue,4145,Opus Energy (Corporate) Ltd,OX2 7JH,0
Hra Expenditure,Special Services,Communal Lighting,Electricity,ELECTRICITY SUPPLY,16/08/2022,REDACTED INVOICE NUMBER,163237,-54.35,Revenue,4145,Opus Energy (Corporate) Ltd,OX2 7JH,0
Hra Expenditure,Special Services,Communal Lighting,Electricity,ELECTRICITY SUPPLY,16/08/2022,REDACTED INVOICE NUMBER,163233,-49.72,Revenue,4145,Opus Energy (Corporate) Ltd,OX2 7JH,0
Hra Expenditure,Special Services,Communal Lighting,Electricity,ELECTRICITY SUPPLY,16/08/2022,REDACTED INVOICE NUMBER,163235,-39.43,Revenue,4145,Opus Energy (Corporate) Ltd,OX2 7JH,0
Hra Expenditure,Special Services,Communal Lighting,Electricity,ELECTRICITY SUPPLY,16/08/2022,REDACTED INVOICE NUMBER,163225,-49.62,Revenue,4145,Opus Energy (Corporate) Ltd,OX2 7JH,0
Hra Expenditure,Special Services,Communal Lighting,Electricity,ELECTRICITY SUPPLY,16/08/2022,REDACTED INVOICE NUMBER,163227,-43.98,Revenue,4145,Opus Energy (Corporate) Ltd,OX2 7JH,0
Hra Expenditure,Special Services,Communal Lighting,Electricity,ELECTRICITY SUPPLY,16/08/2022,REDACTED INVOICE NUMBER,163175,410.51,Revenue,4145,Opus Energy (Corporate) Ltd,OX2 7JH,0
Hra Expenditure,Special Services,Communal Lighting,Electricity,ELECTRICITY SUPPLY,16/08/2022,REDACTED INVOICE NUMBER,163116,47.42,Revenue,4145,Opus Energy (Corporate) Ltd,OX2 7JH,0
Hra Expenditure,Special Services,Communal Lighting,Electricity,ELECTRICITY SUPPLY,16/08/2022,REDACTED INVOICE NUMBER,163231,-62.97,Revenue,4145,Opus Energy (Corporate) Ltd,OX2 7JH,0
Hra Expenditure,Special Services,Communal Lighting,Electricity,ELECTRICITY SUPPLY,16/08/2022,REDACTED INVOICE NUMBER,163232,-79.48,Revenue,4145,Opus Energy (Corporate) Ltd,OX2 7JH,0
Director Digital & Customer En,Communications,Communications,Agency Staff,PROJECT MANAGEMENT SUPPORT,05/08/2022,REDACTED INVOICE NUMBER,163497,2163.3,Revenue,28444,Opus People Solutions Group Limited,IP1 2BX,0
Director Of Environment,Env Health & Licensing Admin,Env Health & Licensing Admin,Agency Staff,PROJECT MANAGEMENT SUPPORT,05/08/2022,REDACTED INVOICE NUMBER,163493,1058.2,Revenue,28444,Opus People Solutions Group Limited,IP1 2BX,0
Director Of Environment,Street Services,Street Cleansing,Agency Staff,PROJECT MANAGEMENT SUPPORT,05/08/2022,REDACTED INVOICE NUMBER,162912,773.02,Revenue,28444,Opus People Solutions Group Limited,IP1 2BX,0
Director Of Environment,Street Services,Street Cleansing,Agency Staff,PROJECT MANAGEMENT SUPPORT,05/08/2022,REDACTED INVOICE NUMBER,163499,1669.02,Revenue,28444,Opus People Solutions Group Limited,IP1 2BX,0
Director Of Environment,Waste Management,Waste Collection Support,Agency Staff,PROJECT MANAGEMENT SUPPORT,05/08/2022,REDACTED INVOICE NUMBER,163505,6967.32,Revenue,28444,Opus People Solutions Group Limited,IP1 2BX,0
Director Of Law & Governance,Democratic Services & Support,Member Advice & Support,Salaries - Basic (Perm),PROJECT MANAGEMENT SUPPORT,05/08/2022,REDACTED INVOICE NUMBER,163501,1300.75,Revenue,28444,Opus People Solutions Group Limited,IP1 2BX,0
Director Of Environment,Depot Management & Admin,Depot Management & Admin,Agency Staff,PROJECT MANAGEMENT SUPPORT,09/08/2022,REDACTED INVOICE NUMBER,162572,168.34,Revenue,28444,Opus People Solutions Group Limited,IP1 2BX,0
Director Of Environment,Depot Management & Admin,Depot Management & Admin,Agency Staff,PROJECT MANAGEMENT SUPPORT,09/08/2022,REDACTED INVOICE NUMBER,162903,168.35,Revenue,28444,Opus People Solutions Group Limited,IP1 2BX,0
Director Of Environment,Depot Management & Admin,Depot Management & Admin,Agency Staff,PROJECT MANAGEMENT SUPPORT,09/08/2022,REDACTED INVOICE NUMBER,162220,134.23,Revenue,28444,Opus People Solutions Group Limited,IP1 2BX,0
Director Of Environment,Depot Management & Admin,Depot Management & Admin,Agency Staff,PROJECT MANAGEMENT SUPPORT,09/08/2022,REDACTED INVOICE NUMBER,163359,168.35,Revenue,28444,Opus People Solutions Group Limited,IP1 2BX,0
Director Of Environment,Depot Management & Admin,Depot Management & Admin,Agency Staff,PROJECT MANAGEMENT SUPPORT,09/08/2022,REDACTED INVOICE NUMBER,161252,168.35,Revenue,28444,Opus People Solutions Group Limited,IP1 2BX,0
Director Of Environment,Depot Management & Admin,Depot Management & Admin,Agency Staff,PROJECT MANAGEMENT SUPPORT,09/08/2022,REDACTED INVOICE NUMBER,162257,168.35,Revenue,28444,Opus People Solutions Group Limited,IP1 2BX,0
Director Of Environment,Grounds Maintenance,Grounds Maintenance,Agency Staff,PROJECT MANAGEMENT SUPPORT,09/08/2022,REDACTED INVOICE NUMBER,163360,475.8,Revenue,28444,Opus People Solutions Group Limited,IP1 2BX,0
Director Of Environment,Grounds Maintenance,Grounds Maintenance,Agency Staff,PROJECT MANAGEMENT SUPPORT,09/08/2022,REDACTED INVOICE NUMBER,163498,577.2,Revenue,28444,Opus People Solutions Group Limited,IP1 2BX,0
Director Of Environment,Grounds Maintenance,Grounds Maintenance,Agency Staff,PROJECT MANAGEMENT SUPPORT,09/08/2022,REDACTED INVOICE NUMBER,163500,577.2,Revenue,28444,Opus People Solutions Group Limited,IP1 2BX,0
Director Of Environment,Parking,Parking Services,Enforcement,PROJECT MANAGEMENT SUPPORT,09/08/2022,REDACTED INVOICE NUMBER,162572,505.06,Revenue,28444,Opus People Solutions Group Limited,IP1 2BX,0
Director Of Environment,Parking,Parking Services,Enforcement,PROJECT MANAGEMENT SUPPORT,09/08/2022,REDACTED INVOICE NUMBER,162903,505.05,Revenue,28444,Opus People Solutions Group Limited,IP1 2BX,0
Director Of Environment,Parking,Parking Services,Enforcement,PROJECT MANAGEMENT SUPPORT,09/08/2022,REDACTED INVOICE NUMBER,162220,402.67,Revenue,28444,Opus People Solutions Group Limited,IP1 2BX,0
Director Of Environment,Parking,Parking Services,Enforcement,PROJECT MANAGEMENT SUPPORT,09/08/2022,REDACTED INVOICE NUMBER,163359,505.05,Revenue,28444,Opus People Solutions Group Limited,IP1 2BX,0
Director Of Environment,Parking,Parking Services,Enforcement,PROJECT MANAGEMENT SUPPORT,09/08/2022,REDACTED INVOICE NUMBER,161252,505.05,Revenue,28444,Opus People Solutions Group Limited,IP1 2BX,0
Director Of Environment,Parking,Parking Services,Enforcement,PROJECT MANAGEMENT SUPPORT,09/08/2022,REDACTED INVOICE NUMBER,162257,505.05,Revenue,28444,Opus People Solutions Group Limited,IP1 2BX,0
Director Digital & Customer En,Communications,Communications,Agency Staff,PROJECT MANAGEMENT SUPPORT,12/08/2022,REDACTED INVOICE NUMBER,163868,1169.35,Revenue,28444,Opus People Solutions Group Limited,IP1 2BX,0
Director Of Environment,Grounds Maintenance,Grounds Maintenance,Agency Staff,PROJECT MANAGEMENT SUPPORT,12/08/2022,REDACTED INVOICE NUMBER,163870,117,Revenue,28444,Opus People Solutions Group Limited,IP1 2BX,0
Director Of Environment,Health & Food Safety,Food Safety Enforcement,Analytical Services,PROJECT MANAGEMENT SUPPORT,12/08/2022,REDACTED INVOICE NUMBER,163862,732.3,Revenue,28444,Opus People Solutions Group Limited,IP1 2BX,0
Director Of Law & Governance,Electoral Services,Election Services,Agency Staff,PROJECT MANAGEMENT SUPPORT,12/08/2022,REDACTED INVOICE NUMBER,163877,4009.86,Revenue,28444,Opus People Solutions Group Limited,IP1 2BX,0
Director Of Law & Governance,Electoral Services,Election Services,Agency Staff,PROJECT MANAGEMENT SUPPORT,12/08/2022,REDACTED INVOICE NUMBER,163866,633.81,Revenue,28444,Opus People Solutions Group Limited,IP1 2BX,0
Director Of Law & Governance,Electoral Services,Register Of Electors,Agency Staff,PROJECT MANAGEMENT SUPPORT,12/08/2022,REDACTED INVOICE NUMBER,163880,2071.31,Revenue,28444,Opus People Solutions Group Limited,IP1 2BX,0
Director Of Law & Governance,Electoral Services,Register Of Electors,Agency Staff,PROJECT MANAGEMENT SUPPORT,12/08/2022,REDACTED INVOICE NUMBER,163882,1184.82,Revenue,28444,Opus People Solutions Group Limited,IP1 2BX,0
Director Of Law & Governance,Electoral Services,Register Of Electors,Agency Staff,PROJECT MANAGEMENT SUPPORT,12/08/2022,REDACTED INVOICE NUMBER,163881,531.03,Revenue,28444,Opus People Solutions Group Limited,IP1 2BX,0
Director Of Law & Governance,Electoral Services,Register Of Electors,Agency Staff,PROJECT MANAGEMENT SUPPORT,12/08/2022,REDACTED INVOICE NUMBER,163879,905.03,Revenue,28444,Opus People Solutions Group Limited,IP1 2BX,0
Director Of Environment,Grounds Maintenance,Grounds Maintenance,Agency Staff,PROJECT MANAGEMENT SUPPORT,16/08/2022,REDACTED INVOICE NUMBER,163867,577.2,Revenue,28444,Opus People Solutions Group Limited,IP1 2BX,0
Director Of Environment,Street Services,Street Cleansing,Agency Staff,PROJECT MANAGEMENT SUPPORT,16/08/2022,REDACTED INVOICE NUMBER,163864,1006.81,Revenue,28444,Opus People Solutions Group Limited,IP1 2BX,0
Director Of Environment,Waste Management,Waste Collection Support,Agency Staff,PROJECT MANAGEMENT SUPPORT,16/08/2022,REDACTED INVOICE NUMBER,163876,1273.48,Revenue,28444,Opus People Solutions Group Limited,IP1 2BX,0
Director Of Environment,Waste Management,Waste Collection Support,Agency Staff,PROJECT MANAGEMENT SUPPORT,16/08/2022,REDACTED INVOICE NUMBER,163865,1183.46,Revenue,28444,Opus People Solutions Group Limited,IP1 2BX,0
Director Of Environment,Waste Management,Waste Collection Support,Agency Staff,PROJECT MANAGEMENT SUPPORT,16/08/2022,REDACTED INVOICE NUMBER,163863,6530.59,Revenue,28444,Opus People Solutions Group Limited,IP1 2BX,0
Director Of Environment,Street Services,Street Cleansing,Agency Staff,PROJECT MANAGEMENT SUPPORT,19/08/2022,REDACTED INVOICE NUMBER,163363,1547.42,Revenue,28444,Opus People Solutions Group Limited,IP1 2BX,0
Director Of Environment,Street Services,Street Cleansing,Agency Staff,PROJECT MANAGEMENT SUPPORT,19/08/2022,REDACTED INVOICE NUMBER,161138,1149.83,Revenue,28444,Opus People Solutions Group Limited,IP1 2BX,0
Director Of Environment,Waste Management,Waste Collection Support,Agency Staff,PROJECT MANAGEMENT SUPPORT,19/08/2022,REDACTED INVOICE NUMBER,161524,562.4,Revenue,28444,Opus People Solutions Group Limited,IP1 2BX,0
Director Of Environment,Waste Management,Waste Collection Support,Agency Staff,PROJECT MANAGEMENT SUPPORT,19/08/2022,REDACTED INVOICE NUMBER,162933,6694.01,Revenue,28444,Opus People Solutions Group Limited,IP1 2BX,0
Director Of Environment,Waste Management,Waste Collection Support,Agency Staff,PROJECT MANAGEMENT SUPPORT,19/08/2022,REDACTED INVOICE NUMBER,163380,6502.43,Revenue,28444,Opus People Solutions Group Limited,IP1 2BX,0
Director Digital & Customer En,Communications,Communications,Agency Staff,PROJECT MANAGEMENT SUPPORT,26/08/2022,REDACTED INVOICE NUMBER,164533,1219.47,Revenue,28444,Opus People Solutions Group Limited,IP1 2BX,0
Director Digital & Customer En,Communications,Communications,Agency Staff,PROJECT MANAGEMENT SUPPORT,26/08/2022,REDACTED INVOICE NUMBER,164509,1186.06,Revenue,28444,Opus People Solutions Group Limited,IP1 2BX,0
Director Of Environment,Env Health & Licensing Admin,Env Health & Licensing Admin,Agency Staff,PROJECT MANAGEMENT SUPPORT,26/08/2022,REDACTED INVOICE NUMBER,164510,1058.2,Revenue,28444,Opus People Solutions Group Limited,IP1 2BX,0
Director Of Environment,Parking,Parking Services,Agency Staff,PROJECT MANAGEMENT SUPPORT,26/08/2022,REDACTED INVOICE NUMBER,164538,538.2,Revenue,28444,Opus People Solutions Group Limited,IP1 2BX,0
Director Of Environment,Parking,Parking Services,Agency Staff,PROJECT MANAGEMENT SUPPORT,26/08/2022,REDACTED INVOICE NUMBER,164513,426.08,Revenue,28444,Opus People Solutions Group Limited,IP1 2BX,0
Director Of Environment,Parking,Parking Services,Agency Staff,PROJECT MANAGEMENT SUPPORT,26/08/2022,REDACTED INVOICE NUMBER,163357,553.15,Revenue,28444,Opus People Solutions Group Limited,IP1 2BX,0
Director Of Environment,Parking,Parking Services,Agency Staff,PROJECT MANAGEMENT SUPPORT,26/08/2022,REDACTED INVOICE NUMBER,163496,441.03,Revenue,28444,Opus People Solutions Group Limited,IP1 2BX,0
Director Of Environment,Parking,Parking Services,Agency Staff,PROJECT MANAGEMENT SUPPORT,26/08/2022,REDACTED INVOICE NUMBER,163869,328.9,Revenue,28444,Opus People Solutions Group Limited,IP1 2BX,0
Director Of Environment,Street Services,Street Cleansing,Agency Staff,PROJECT MANAGEMENT SUPPORT,26/08/2022,REDACTED INVOICE NUMBER,164508,900.41,Revenue,28444,Opus People Solutions Group Limited,IP1 2BX,0
Director Of Environment,Waste Management,Waste Collection Support,Agency Staff,PROJECT MANAGEMENT SUPPORT,26/08/2022,REDACTED INVOICE NUMBER,164515,1272.87,Revenue,28444,Opus People Solutions Group Limited,IP1 2BX,0
Director Of Environment,Grounds Maintenance,Grounds Maintenance,Agency Staff,PROJECT MANAGEMENT SUPPORT,30/08/2022,REDACTED INVOICE NUMBER,164534,577.2,Revenue,28444,Opus People Solutions Group Limited,IP1 2BX,0
Director Of Law & Governance,Democratic Services & Support,Member Advice & Support,Salaries - Basic (Perm),PROJECT MANAGEMENT SUPPORT,30/08/2022,REDACTED INVOICE NUMBER,164553,840.13,Revenue,28444,Opus People Solutions Group Limited,IP1 2BX,0
Director Of Law & Governance,Democratic Services & Support,Member Advice & Support,Salaries - Basic (Perm),PROJECT MANAGEMENT SUPPORT,30/08/2022,REDACTED INVOICE NUMBER,164552,1732.52,Revenue,28444,Opus People Solutions Group Limited,IP1 2BX,0
Hra Expenditure,Supervision And Management,Managing Tenancies,Computer Software Licences,Annual Support & Maintenance,05/08/2022,REDACTED INVOICE NUMBER,163491,8488.3,Revenue,4150,Orchard Information Systems Ltd,NE1 3PJ,0
Hra Expenditure,Supervision And Management,Managing Tenancies,Subscriptions,TO CORRECT ERROR ON SYSTEM,05/08/2022,REDACTED INVOICE NUMBER,162965,-222.12,Revenue,4150,Orchard Information Systems Ltd,NE1 3PJ,0
Director Of Environment,Golf Course,Golf Course,Purchases - General Equipment,PARTS,26/08/2022,REDACTED INVOICE NUMBER,163448,551.99,Revenue,4169,P Tuckwell Ltd,CO7 7LG,0
Balance Sheet,Balance Sheet,Balance Sheet,Agency - Planning Referendum,REFERENDUM TVD'S,23/08/2022,REDACTED INVOICE NUMBER,163384,32,Revenue,4175,Pakflatt (Uk) Ltd,BT48 0LY,0
Director Of Environment,Licensing,Animal & P.Health Licensing,Kennel & Vet Fees,RIDING SCHOOL INSPECTION,12/08/2022,REDACTED INVOICE NUMBER,162941,298.34,Revenue,29137,Paton & Lee Ltd,CM8 3HG,0
Capex Director Of Environment,Other Environmental Services,Disabled Facilities Grant,Grants - General,DFG - 23 BECKET CLOSE,02/08/2022,REDACTED INVOICE NUMBER,163023,1500.3,Capital,26573,Paul Weightman,CM14 4PL,0
Capex Director Of Environment,Other Environmental Services,Disabled Facilities Grant,Grants - General,DFG-12 LIME GROVE,05/08/2022,REDACTED INVOICE NUMBER,163240,906.15,Capital,26573,Paul Weightman,CM14 4PL,0
Capex Director Of Environment,Other Environmental Services,Disabled Facilities Grant,Grants - General,DFG - 29 HAMPDEN CRESCENT,16/08/2022,REDACTED INVOICE NUMBER,163654,474.45,Capital,26573,Paul Weightman,CM14 4PL,0
Hra Expenditure,Supervision And Management,Affordable Hsg,Consultancy Fees,FOUR OAKS - PRE-CONSTRUCTIO STAGE,26/08/2022,REDACTED INVOICE NUMBER,163619,4103.75,Revenue,21886,Pellings Llp,BR1 1RY,0
Hra Expenditure,Supervision And Management,Affordable Hsg,Consultancy Fees,HIGHWOOD CLOSE - PRE-CONSTRUCTION STAGE,26/08/2022,REDACTED INVOICE NUMBER,163620,4103.75,Revenue,21886,Pellings Llp,BR1 1RY,0
Hra Expenditure,Supervision And Management,Affordable Hsg,Consultancy Fees,INGLETON HOUSE - PRE-CONSTRUCTION STAGE,26/08/2022,REDACTED INVOICE NUMBER,163618,2051.87,Revenue,21886,Pellings Llp,BR1 1RY,0
Director Corporate Resources,Human Resources,Human Resources,New Appointment Advertising,First Stage Fees,26/08/2022,REDACTED INVOICE NUMBER,163968,14332,Revenue,24861,Penna - Cipfa,EC4N 7RD,0
Director Corporate Resources,Human Resources,Human Resources,New Appointment Advertising,Microsite Fee,26/08/2022,REDACTED INVOICE NUMBER,163967,2500,Revenue,24861,Penna - Cipfa,EC4N 7RD,0
Director Of Environment,Licensing,Taxi Drivers Account,Crb Checks,DBS Enhanced Check,09/08/2022,REDACTED INVOICE NUMBER,162784,564,Revenue,24446,Personnel Checks,.,0
Hra Expenditure,Repairs And Maintenance,Responsive Repairs Management,Pest Control,PEST CONTROL - TOLLESBURY COURT,19/08/2022,REDACTED INVOICE NUMBER,163752,80,Revenue,4226,Pestbusters,CM15 9JU,0
Hra Expenditure,Repairs And Maintenance,Responsive Repairs Management,Pest Control,WASPS PRIEST FIELD,19/08/2022,REDACTED INVOICE NUMBER,163984,80,Revenue,4226,Pestbusters,CM15 9JU,0
Hra Expenditure,Repairs And Maintenance,Responsive Repairs Management,Pest Control,WASPS ST GEORGES COURT,19/08/2022,REDACTED INVOICE NUMBER,163981,100,Revenue,4226,Pestbusters,CM15 9JU,0
Hra Expenditure,Repairs And Maintenance,Responsive Repairs Management,Pest Control,WASPS ST GEORGES CT,19/08/2022,REDACTED INVOICE NUMBER,163982,80,Revenue,4226,Pestbusters,CM15 9JU,0
Hra Expenditure,Repairs And Maintenance,Responsive Repairs Management,Pest Control,RAT CONTROL DRAKE HOUSE,23/08/2022,REDACTED INVOICE NUMBER,163983,200,Revenue,4226,Pestbusters,CM15 9JU,0
Director Digital & Customer En,Digital Servs & Transformation,Ict Services,Managed Services,Microsoft 365,19/08/2022,REDACTED INVOICE NUMBER,162955,278.94,Revenue,4250,Phoenix Software Limited,YO42 1NS,0
Director Digital & Customer En,Digital Servs & Transformation,Ict Services,Managed Services,Azure overage,26/08/2022,REDACTED INVOICE NUMBER,164551,24805.97,Revenue,4250,Phoenix Software Limited,YO42 1NS,0
Director Of Environment,"Communities, Health & Leisure",Community Development,Contracted Services,COMMUNITY DEVELOPMENT,19/08/2022,REDACTED INVOICE NUMBER,164188,1650,Revenue,202782P,Pilgrims Hatch Baptist Church,CM15 0BD,0
Director Of Environment,Vehicle Fleet Management,Vehicle Fleet Management,Vehicle R&M - External,VEHICLE PARTS,16/08/2022,REDACTED INVOICE NUMBER,163737,589.9,Revenue,4270,Pirtek (Basildon),SS14 3DY,0
Director Of Environment,Vehicle Fleet Management,Vehicle Fleet Management,Vehicle R&M - External,VEHICLE PARTS,16/08/2022,REDACTED INVOICE NUMBER,163738,178.8,Revenue,4270,Pirtek (Basildon),SS14 3DY,0
Director Of Planning & Economy,Planning Development Managemt,Planning Development Managemt,Consultancy Fees,TREE / LANDSCAPE SUPPORT - JUN '22,02/08/2022,REDACTED INVOICE NUMBER,162434,2970,Revenue,26594,Plumb Associates Ltd,CM3 6NF,0
Director Of Planning & Economy,Planning Development Managemt,Planning Development Managemt,Consultancy Fees,tree and landscape support-JUL,30/08/2022,REDACTED INVOICE NUMBER,163642,2805,Revenue,26594,Plumb Associates Ltd,CM3 6NF,0
Director Corporate Resources,Office Accommodation,Office Accommodation,Postage Costs Direct,Transaction Fee,12/08/2022,REDACTED INVOICE NUMBER,163898,5566,Revenue,4295,Postage By Phone-Pitney Bowes Ltd,CM19 5DQ,0
Hra Expenditure,Special Services,Caretaking,Cleaning & Dom. Supplies-Other,MICROFIBRE CLOTHS,09/08/2022,REDACTED INVOICE NUMBER,163366,72.5,Revenue,4300,Power Hygiene + Safety Products Limited,SS6 7UY,0
Hra Expenditure,Special Services,Caretaking,Cleaning & Dom. Supplies-Other,CLEANING MATERIALS,26/08/2022,REDACTED INVOICE NUMBER,163592,471.95,Revenue,4300,Power Hygiene + Safety Products Limited,SS6 7UY,0
Balance Sheet,Balance Sheet,Balance Sheet,Fuel Stores,FUEL,02/08/2022,REDACTED INVOICE NUMBER,159922,14435.11,Revenue,22785,Prax Petroleum Limited,KT13 0TJ,0
Balance Sheet,Balance Sheet,Balance Sheet,Fuel Stores,DIESEL,05/08/2022,REDACTED INVOICE NUMBER,163697,13996.6,Revenue,22785,Prax Petroleum Limited,KT13 0TJ,0
Balance Sheet,Balance Sheet,Balance Sheet,Fuel Stores,FUEL,16/08/2022,REDACTED INVOICE NUMBER,163742,15121.51,Revenue,22785,Prax Petroleum Limited,KT13 0TJ,0
Director Corporate Resources,Asset Management,Asset Management,R&M Bldgs - General,LIFT MAINTENANCE - VARIOUS - JUN '22,26/08/2022,REDACTED INVOICE NUMBER,163741,952,Revenue,4308,Precision Lift Services Ltd,SS14 3BZ,0
Hra Expenditure,Supervision And Management,Policy And Management,Training Expenses,Building Regulations and Fire,30/08/2022,REDACTED INVOICE NUMBER,163725,638.4,Revenue,28543,Prof. Development Grp T/A Government Events,SK9 4LY,0
Director Of Environment,Open Spaces,Countryside Recreation Mtnce,R&M Grounds - Grass Cutting,Flail Works at Hutton Country,19/08/2022,REDACTED INVOICE NUMBER,164006,900,Revenue,4380,R P + J Gaymer,CM4 ONJ,0
Director Of Environment,Open Spaces,Countryside Recreation Mtnce,R&M Grounds - Grass Cutting,Hay Making at Hutton Country Park,19/08/2022,REDACTED INVOICE NUMBER,164007,4259.8,Revenue,4380,R P + J Gaymer,CM4 ONJ,0
Director Of Environment,Open Spaces,Countryside Recreation Mtnce,R&M Grounds - Grass Cutting,Hay Making at Merrymeades ,19/08/2022,REDACTED INVOICE NUMBER,164061,1314.75,Revenue,4380,R P + J Gaymer,CM4 ONJ,0
Director Of Environment,Open Spaces,Countryside Recreation Mtnce,R&M Grounds - Grass Cutting,Hay Making at St Faiths ,19/08/2022,REDACTED INVOICE NUMBER,164057,2264,Revenue,4380,R P + J Gaymer,CM4 ONJ,0
Hra Expenditure,Repairs And Maintenance,Responsive Repairs Management,Other Fees & Service,EMERGENCY CALL OUT,26/08/2022,REDACTED INVOICE NUMBER,164506,180,Revenue,29178,Rapid Secure Ltd,CV11 6RU,0
Director Of Environment,Licensing,Taxi Vehicles Account,Printing Materials,ADVERT PLACEMENT,09/08/2022,REDACTED INVOICE NUMBER,162694,419.43,Revenue,27928,Reach Publishing Services Ltd,E14 5AP,0
Director Of Planning & Economy,Planning Development Managemt,Planning Development Managemt,Advertising - General,PLANNING ADVERTS,09/08/2022,REDACTED INVOICE NUMBER,162695,152.52,Revenue,27928,Reach Publishing Services Ltd,E14 5AP,0
Director Of Planning & Economy,Planning Development Managemt,Planning Development Managemt,Advertising - General,ADVERT PLACEMENT,16/08/2022,REDACTED INVOICE NUMBER,162958,279.62,Revenue,27928,Reach Publishing Services Ltd,E14 5AP,0
Director Of Planning & Economy,Planning Development Managemt,Planning Development Managemt,Advertising - General,ADVERT PLACEMENT,23/08/2022,REDACTED INVOICE NUMBER,163389,381.3,Revenue,27928,Reach Publishing Services Ltd,E14 5AP,0
Director Of Planning & Economy,Planning Development Managemt,Planning Development Managemt,Advertising - General,ADVERT PLACEMENT,30/08/2022,REDACTED INVOICE NUMBER,163630,330.46,Revenue,27928,Reach Publishing Services Ltd,E14 5AP,0
Director Corporate Resources,Council Tax & Nndr,Nndr Collection,Baliff Fees,REVENUES COLLECTION,12/08/2022,REDACTED INVOICE NUMBER,163813,45,Revenue,4434,Reventus Limited,SG14 1DB,0
Hra Expenditure,Supervision And Management,Policy And Management,Project Management Support,Advanced consultancy credits,02/08/2022,REDACTED INVOICE NUMBER,162428,6920,Revenue,26765,Right Data Ltd,IG4 5EX,0
Hra Expenditure,Supervision And Management,Policy And Management,Project Management Support,Advanced consultancy credits - SEP '22,30/08/2022,REDACTED INVOICE NUMBER,163705,6920,Revenue,26765,Right Data Ltd,IG4 5EX,0
Director Housing & Enforcement,Cctv,Community Safety - Cctv,Miscellaneous Expenses,CCTV CAM4 REPAIR,02/08/2022,REDACTED INVOICE NUMBER,162690,2410,Revenue,28991,Rmc Surveys & Inspections Ltd,CM13 3FR,0
Director Of Law & Governance,Democratic Services & Support,Member Allowances & Expenses,Conference Expenses - Members,LGA CONFERENCE,26/08/2022,REDACTED INVOICE NUMBER,163994,23.75,Revenue,4465,Rochford District Council,SS4 1BW,0
Hra Expenditure,Repairs And Maintenance,Planned Maintenance,R&M Fix & Fit - Fire Maintenan,FIRE CONSULTANCY DAY,23/08/2022,REDACTED INVOICE NUMBER,163391,1425,Revenue,27008,Rowans Fire Ltd,DN22 9NQ,0
Director Corporate Resources,Council Tax & Nndr,Nndr Collection,Baliff Fees,REVENUES COLLECTION,05/08/2022,REDACTED INVOICE NUMBER,162651,0,Revenue,4501,Rundle + Co Ltd,LE16 9HB,0
Director Of Planning & Economy,Economic Development Total,Economic Development,Other Fees & Service,CONSULTANTS,30/08/2022,REDACTED INVOICE NUMBER,163715,2076,Revenue,29134,Russell And Dawson,ME16 0UN,0
Director Corporate Resources,Office Accommodation,Office Facilities Management,Service Charges,VOID SPACE INC. SUITE 1,02/08/2022,REDACTED INVOICE NUMBER,163377,47887.23,Revenue,28074,Sanderson Weatherall,LS1 4DL,0
Director Of Environment,Vehicle Fleet Management,Vehicle Fleet Management,Vehicle Replacement Parts,Works,16/08/2022,REDACTED INVOICE NUMBER,164066,184.36,Revenue,4559,Scarab Sweepers Limited,TN12 9QD,0
Director Of Law & Governance,Legal Services & Data Protect,Legal Services & Data Protect,Legal Fees,PROJECT MANAGEMENT SUPPORT,12/08/2022,REDACTED INVOICE NUMBER,162415,1976.7,Revenue,4582,Sellick Partnership Group Ltd,M2 5HX,0
Director Of Law & Governance,Legal Services & Data Protect,Legal Services & Data Protect,Project Management Support,PROJECT MANAGEMENT SUPPORT,19/08/2022,REDACTED INVOICE NUMBER,164108,1482.53,Revenue,4582,Sellick Partnership Group Ltd,M2 5HX,0
Director Of Law & Governance,Legal Services & Data Protect,Legal Services & Data Protect,Project Management Support,PROJECT MANAGEMENT SUPPORT,19/08/2022,REDACTED INVOICE NUMBER,164104,988.35,Revenue,4582,Sellick Partnership Group Ltd,M2 5HX,0
Director Of Law & Governance,Legal Services & Data Protect,Legal Services & Data Protect,Project Management Support,PROJECT MANAGEMENT SUPPORT,19/08/2022,REDACTED INVOICE NUMBER,164105,1943.76,Revenue,4582,Sellick Partnership Group Ltd,M2 5HX,0
Director Of Law & Governance,Legal Services & Data Protect,Legal Services & Data Protect,Project Management Support,PROJECT MANAGEMENT SUPPORT,19/08/2022,REDACTED INVOICE NUMBER,164106,1482.53,Revenue,4582,Sellick Partnership Group Ltd,M2 5HX,0
Director Of Law & Governance,Legal Services & Data Protect,Legal Services & Data Protect,Project Management Support,PROJECT MANAGEMENT SUPPORT,19/08/2022,REDACTED INVOICE NUMBER,164107,1564.89,Revenue,4582,Sellick Partnership Group Ltd,M2 5HX,0
Director Of Law & Governance,Legal Services & Data Protect,Legal Services & Data Protect,Project Management Support,PROJECT MANAGEMENT SUPPORT,23/08/2022,REDACTED INVOICE NUMBER,164205,988.35,Revenue,4582,Sellick Partnership Group Ltd,M2 5HX,0
Director Of Law & Governance,Legal Services & Data Protect,Legal Services & Data Protect,Project Management Support,PROJECT MANAGEMENT SUPPORT,30/08/2022,REDACTED INVOICE NUMBER,164298,2108.48,Revenue,4582,Sellick Partnership Group Ltd,M2 5HX,0
Director Of Planning & Economy,Planning Policy Total,Planning Policy,Legal Fees,DUNTON HILLS. SEP'21 - MAR'22,09/08/2022,REDACTED INVOICE NUMBER,163585,374,Revenue,4599,Sharpe Pritchard,WC1X 0BJ,0
Director Of Environment,Open Spaces,Sports Pitches,Purchases - General Equipment,OVERMARKING,09/08/2022,REDACTED INVOICE NUMBER,162682,110,Revenue,27425,Skippers Ground Maintenance Ltd,CM9 6RZ,0
Director Of Environment,Vehicle Fleet Management,Vehicle Fleet Management,Vehicle Replacement Parts,WINDSCREEN,05/08/2022,REDACTED INVOICE NUMBER,162744,184,Revenue,4635,Smart Glass Essex,RM14 1HS,0
Director Corporate Resources,Human Resources,Human Resources,Miscellaneous Expenses,UPGRADE TO COUNSELLING,19/08/2022,REDACTED INVOICE NUMBER,163729,1225,Revenue,28541,Sme Hci Ltd Trading As Vivup,GU9 7UD,0
Director Corporate Resources,Human Resources,Human Resources,Subscriptions,UPGRADE TO COUNSELLING,19/08/2022,REDACTED INVOICE NUMBER,163730,1225,Revenue,28541,Sme Hci Ltd Trading As Vivup,GU9 7UD,0
Balance Sheet,Balance Sheet,Balance Sheet,Highways Stores,GLOVES,02/08/2022,REDACTED INVOICE NUMBER,162446,14.37,Revenue,24887,Smi Group,GU27 2QH,0
Balance Sheet,Balance Sheet,Balance Sheet,Highways Stores,GLOVES,19/08/2022,REDACTED INVOICE NUMBER,162684,129.33,Revenue,24887,Smi Group,GU27 2QH,0
Balance Sheet,Balance Sheet,Balance Sheet,Highways Stores,HEAVY DUTY KNIT WRIST GLOVE,19/08/2022,REDACTED INVOICE NUMBER,162761,-129.33,Revenue,24887,Smi Group,GU27 2QH,0
Director Of Environment,Grounds Maintenance,Grounds Maintenance,Protective Clothing,CLOTHING,19/08/2022,REDACTED INVOICE NUMBER,162393,215.07,Revenue,24887,Smi Group,GU27 2QH,0
Director Of Environment,Grounds Maintenance,Grounds Maintenance,Protective Clothing,TROUSERS,19/08/2022,REDACTED INVOICE NUMBER,163381,110.16,Revenue,24887,Smi Group,GU27 2QH,0
Director Digital & Customer En,Digital Servs & Transformation,Ict Services,Internet Services,Certified Credit for DigiCert,12/08/2022,REDACTED INVOICE NUMBER,163946,1000,Revenue,26089,Softcat Plc,SL7 1LW,0
Director Corporate Resources,Human Resources,Human Resources,New Appointment Advertising,RECRUITMENT SUPPORT,19/08/2022,REDACTED INVOICE NUMBER,162661,4462.5,Revenue,4649,Solace In Business Ltd,SA2 0NY,0
Director Corporate Resources,Human Resources,Human Resources,New Appointment Advertising,EXECUTIVE RECRUITMENT,26/08/2022,REDACTED INVOICE NUMBER,164530,5737.5,Revenue,4649,Solace In Business Ltd,SA2 0NY,0
Director Corporate Resources,Human Resources,Human Resources,New Appointment Advertising,EXECUTIVE RECRUITMENT,26/08/2022,REDACTED INVOICE NUMBER,164529,2550,Revenue,4649,Solace In Business Ltd,SA2 0NY,0
Director Digital & Customer En,Digital Servs & Transformation,Ict Services,Managed Services,MICROSOFT 365/AZURE MONTHLY US,12/08/2022,REDACTED INVOICE NUMBER,162498,692.79,Revenue,25036,Sol-Tec Ltd,RG1 8EQ,0
Director Digital & Customer En,Digital Servs & Transformation,Ict Services,Managed Services,Microsoft June 2022,12/08/2022,REDACTED INVOICE NUMBER,162824,707.91,Revenue,25036,Sol-Tec Ltd,RG1 8EQ,0
Director Digital & Customer En,Digital Servs & Transformation,Ict Services,Managed Services,Nerdio Manager for WVD License,12/08/2022,REDACTED INVOICE NUMBER,162893,857.78,Revenue,25036,Sol-Tec Ltd,RG1 8EQ,0
Director Of Environment,"Communities, Health & Leisure",Family Fun Days,Contracted Services,DISCO ENTERTAINMENT,26/08/2022,REDACTED INVOICE NUMBER,163703,150,Revenue,28801,Sophisticated Entertainment Ltd,SS15 4AZ,0
Director Of Environment,"Communities, Health & Leisure",Sports & Social Venues,Income - General Fees & Charge,Jul 22 - Management Fee,12/08/2022,REDACTED INVOICE NUMBER,163953,2031.71,Revenue,28440,Sports And Leisure Management,LE10 3EY,0
Capex Director Of Environment,Other Environmental Services,Disabled Facilities Grant,Grants - General,DISABLED FACILITIES GRANT,12/08/2022,REDACTED INVOICE NUMBER,163015,3462,Capital,4721,Stannah Lift Services Limited,SP10 3SD,0
Capex Director Of Environment,Other Environmental Services,Disabled Facilities Grant,Grants - General,DISABLED FACILITIES GRANT,23/08/2022,REDACTED INVOICE NUMBER,163450,3163,Capital,4721,Stannah Lift Services Limited,SP10 3SD,0
Director Housing & Enforcement,Homelessness,B&B Accommodation,B & B Charges (Homelessness),HOMELESSNESS PREVENTION,12/08/2022,REDACTED INVOICE NUMBER,163944,580,Revenue,28763,Stef Philips Ltd,N14 6BN,0
Balance Sheet,Balance Sheet,Balance Sheet,Cis Contractors,CIS REFUND,19/08/2022,REDACTED INVOICE NUMBER,163963,575.41,Revenue,28763,Stef Philips Ltd,N14 6BN,0
Balance Sheet,Balance Sheet,Balance Sheet,Cis Contractors,CIS REFUND MAR 22,19/08/2022,REDACTED INVOICE NUMBER,163964,436.2,Revenue,28763,Stef Philips Ltd,N14 6BN,0
Director Housing & Enforcement,Homelessness,B&B Accommodation,B & B Charges (Homelessness),HOMELESSNESS PREVENTION,26/08/2022,REDACTED INVOICE NUMBER,163209,899,Revenue,28763,Stef Philips Ltd,N14 6BN,0
Director Housing & Enforcement,Homelessness,B&B Accommodation,B & B Charges (Homelessness),HOMELESSNESS PREVENTION,26/08/2022,REDACTED INVOICE NUMBER,163214,775,Revenue,28763,Stef Philips Ltd,N14 6BN,0
Director Housing & Enforcement,Homelessness,B&B Accommodation,B & B Charges (Homelessness),HOMELESSNESS PREVENTION,26/08/2022,REDACTED INVOICE NUMBER,163221,750,Revenue,28763,Stef Philips Ltd,N14 6BN,0
Director Corporate Resources,Asset Management,Street Lighting,R&M Other - General,MAINTENANCE,26/08/2022,REDACTED INVOICE NUMBER,163490,411.23,Revenue,28435,Sterling Electrical Contractors Ltd,N3 1XW,0
Director Of Environment,Health & Food Safety,Food Safety Enforcement,Analytical Services,FOOD HYGIENE INSPECTIONS - JUL '22,26/08/2022,REDACTED INVOICE NUMBER,163601,619,Revenue,4742,Stewart Harris Agnew Partnership,E12 5EQ,0
Director Corporate Resources,Asset Management,Asset Management,R&M Bldgs - Compliance,PLUMBING WORKS - SEVEN ARCHES ROAD,02/08/2022,REDACTED INVOICE NUMBER,162948,366,Revenue,4791,T Jones,CM13 1NS,0
Director Corporate Resources,Office Accommodation,Office Facilities Management,R&M Bldgs - General,PLUMBING WORKS - MEMBERS WC - TOWN HALL,02/08/2022,REDACTED INVOICE NUMBER,162946,40,Revenue,4791,T Jones,CM13 1NS,0
Balance Sheet,Balance Sheet,Balance Sheet,Cis Contractors,CIS REFUND,23/08/2022,REDACTED INVOICE NUMBER,163838,8,Revenue,4791,T Jones,CM13 1NS,0
Capex Director Of C Resources,Asset Management,Asset Compliance,Enhancements,Bishops Hall,05/08/2022,REDACTED INVOICE NUMBER,162546,6164.76,Capital,28358,T R Fire And Security Ltd,CO12 5AH,0
Capex Director Of C Resources,Asset Management,Asset Compliance,Enhancements,intruder alarm at Warley,05/08/2022,REDACTED INVOICE NUMBER,162526,1162,Capital,28358,T R Fire And Security Ltd,CO12 5AH,0
Capex Director Of C Resources,Asset Management,Asset Management Strategy,R&M Bldgs - General,44 HIGH STREET - FIRE ALARM,09/08/2022,REDACTED INVOICE NUMBER,163373,1266.65,Capital,28358,T R Fire And Security Ltd,CO12 5AH,0
Capex Director Of C Resources,Asset Management,Asset Management Strategy,R&M Bldgs - General,44 HIGH STREET. INTRUDER ALARM,09/08/2022,REDACTED INVOICE NUMBER,163374,468.5,Capital,28358,T R Fire And Security Ltd,CO12 5AH,0
Director Housing & Enforcement,Homelessness,Homelessness Admin,Miscellaneous Expenses,NAFN RECHARGES,26/08/2022,REDACTED INVOICE NUMBER,162671,214.8,Revenue,4802,Tameside Mbc,OL6 0GA,0
Director Of Environment,Cemeteries,Cemeteries,Purchases - General Equipment,On site PUWER inspection,05/08/2022,REDACTED INVOICE NUMBER,162552,1409.77,Revenue,4815,Teleshore (Uk) Ltd,NP12 4AD,0
Balance Sheet,Balance Sheet,Balance Sheet,Highways Stores,MINIMAX CADDIES,09/08/2022,REDACTED INVOICE NUMBER,162676,5376,Revenue,357,The Compost Bag Company Limited,PR26 7PF,0
Balance Sheet,Balance Sheet,Balance Sheet,Highways Stores,COMPOSTABLE LINERS,30/08/2022,REDACTED INVOICE NUMBER,163686,8294.4,Revenue,357,The Compost Bag Company Limited,PR26 7PF,0
Director Of Planning & Economy,Economic Development Total,Economic Development,Other Fees & Service,PROJECT SPONSORSHIP,26/08/2022,REDACTED INVOICE NUMBER,163586,10000,Revenue,29167,The Good Economy Ltd,BA1 2QS,0
Hra Expenditure,Repairs And Maintenance,Responsive Repairs Management,R&M Bldgs - Asbestos,DOMESTIC MANAGEMENT SURVEY,05/08/2022,REDACTED INVOICE NUMBER,163746,626,Revenue,27949,The Hazard Management & Environmental Service,PE28 9LJ,0
Capex Director Of Housing,Housing - Hra,Boiler/ Heating  Replacement,Enhancements,DOMESTIC MANAGEMENT SURVEY,19/08/2022,REDACTED INVOICE NUMBER,161902,504,Capital,27949,The Hazard Management & Environmental Service,PE28 9LJ,0
Hra Expenditure,Repairs And Maintenance,Planned Maintenance,Customer Surveys,Domestic Management Survey,19/08/2022,REDACTED INVOICE NUMBER,163743,626,Revenue,27949,The Hazard Management & Environmental Service,PE28 9LJ,0
Hra Expenditure,Repairs And Maintenance,Planned Maintenance,Customer Surveys,DOMESTIC MANAGEMENT SURVEYS,19/08/2022,REDACTED INVOICE NUMBER,162554,3100,Revenue,27949,The Hazard Management & Environmental Service,PE28 9LJ,0
Hra Expenditure,Repairs And Maintenance,Planned Maintenance,Customer Surveys,RE-INSPECTION SURVEYS,19/08/2022,REDACTED INVOICE NUMBER,163755,165.75,Revenue,27949,The Hazard Management & Environmental Service,PE28 9LJ,0
Hra Expenditure,Repairs And Maintenance,Planned Maintenance,Customer Surveys,REINSPECTION SURVEYS,19/08/2022,REDACTED INVOICE NUMBER,163860,965.25,Revenue,27949,The Hazard Management & Environmental Service,PE28 9LJ,0
Capex Director Of Housing,Housing - Hra,Housing Stock - Doors,Enhancements,DOMESTIC MANAGEMENT SURVEY,26/08/2022,REDACTED INVOICE NUMBER,164196,2362,Capital,27949,The Hazard Management & Environmental Service,PE28 9LJ,0
Capex Director Of Housing,Housing - Hra,Housing Stock -Health & Safety,Enhancements,DOMESTIC MANAGEMENT SURVEY,26/08/2022,REDACTED INVOICE NUMBER,164195,354,Capital,27949,The Hazard Management & Environmental Service,PE28 9LJ,0
Director Of Planning & Economy,Planning Development Managemt,Planning Enforcement,Agency Staff,PROJECT MANAGEMENT SUPPORT,05/08/2022,REDACTED INVOICE NUMBER,162798,961.28,Revenue,4890,The Oyster Partnership,SW1Y 4QX,0
Director Of Planning & Economy,Planning Development Managemt,Planning Enforcement,Agency Staff,PROJECT MANAGEMENT SUPPORT,05/08/2022,REDACTED INVOICE NUMBER,162797,1636.11,Revenue,4890,The Oyster Partnership,SW1Y 4QX,0
Director Of Planning & Economy,Planning Policy Total,Planning Policy,Project Management Support,PROJECT MANAGEMENT SUPPORT,05/08/2022,REDACTED INVOICE NUMBER,162499,2775,Revenue,4890,The Oyster Partnership,SW1Y 4QX,0
Director Of Planning & Economy,Planning Policy Total,Planning Policy,Project Management Support,PROJECT MANAGEMENT SUPPORT,12/08/2022,REDACTED INVOICE NUMBER,162785,2775,Revenue,4890,The Oyster Partnership,SW1Y 4QX,0
Director Of Planning & Economy,Planning Policy Total,Planning Policy,Project Management Support,PROJECT MANAGEMENT SUPPORT,19/08/2022,REDACTED INVOICE NUMBER,163057,1603.13,Revenue,4890,The Oyster Partnership,SW1Y 4QX,0
Director Of Planning & Economy,Planning Policy Total,Planning Policy,Project Management Support,PROJECT MANAGEMENT SUPPORT,19/08/2022,REDACTED INVOICE NUMBER,163056,2775,Revenue,4890,The Oyster Partnership,SW1Y 4QX,0
Director Of Planning & Economy,Planning Policy Total,Planning Policy,Project Management Support,PROJECT MANAGEMENT SUPPORT,19/08/2022,REDACTED INVOICE NUMBER,163058,1606.93,Revenue,4890,The Oyster Partnership,SW1Y 4QX,0
Director Of Planning & Economy,Planning Policy Total,Planning Policy,Project Management Support,PROJECT MANAGEMENT SUPPORT,19/08/2022,REDACTED INVOICE NUMBER,163059,1666.98,Revenue,4890,The Oyster Partnership,SW1Y 4QX,0
Director Of Planning & Economy,Planning Policy Total,Planning Policy,Project Management Support,PROJECT MANAGEMENT SUPPORT,26/08/2022,REDACTED INVOICE NUMBER,163060,915.5,Revenue,4890,The Oyster Partnership,SW1Y 4QX,0
Capex Director Of Environment,Corporate Services,King George'S Redevelopment,Contracted Services,SIGN INSTALLATION,09/08/2022,REDACTED INVOICE NUMBER,163613,722,Capital,25788,The Styleworks,CM13 1XG,0
Director Of Environment,"Communities, Health & Leisure",Family Fun Days,Contracted Services,Vinyl Banners,12/08/2022,REDACTED INVOICE NUMBER,163891,239,Revenue,25788,The Styleworks,CM13 1XG,0
Director Of Environment,"Communities, Health & Leisure",Health & Wellbeing,Contracted Services,walking programme (2022),26/08/2022,REDACTED INVOICE NUMBER,164109,215.84,Revenue,4979,Trailnet C.I.C,CM13 3PZ,0
Hra Expenditure,Repairs And Maintenance,Planned Maintenance,R&M Fix & Fit - Alarms,ECO FIRE ALARM MAINTENANCE,05/08/2022,REDACTED INVOICE NUMBER,160532,3924.76,Revenue,4994,Tunstall Telecom Ltd,DN14 0HR,0
Hra Expenditure,Special Services,Sheltered Welfare Services,Equipment & Tools - R&M,REPLACED BATTERIES - QUENNELL WAY,19/08/2022,REDACTED INVOICE NUMBER,162283,1576.31,Revenue,4994,Tunstall Telecom Ltd,DN14 0HR,0
Director Of Planning & Economy,Economic Development Total,Economic Development,Other Fees & Service,JSOCIAL MEDIA MANAGEMENT - JUL '22,16/08/2022,REDACTED INVOICE NUMBER,163616,750,Revenue,28939,REDACTED PERSONAL DATA,REDACTED,0
Capex Director Of Housing,Housing - Affordable Housing,Brookfield Project,Enhancements,ENHANCEMENTS,26/08/2022,REDACTED INVOICE NUMBER,164294,340,Capital,226580P,REDACTED PERSONAL DATA,REDACTED,0
Hra Expenditure,"Rents, Rates & Other Charges","Rents, Rates & Other Charges",Water,WATER SUPPLY,05/08/2022,REDACTED INVOICE NUMBER,163615,296.35,Revenue,171,Wave - Business. Was Anglian Water,CM20 9HA,0
Balance Sheet,Balance Sheet,Balance Sheet,Insurance Account,PROFESSIONAL SERVICES,16/08/2022,REDACTED INVOICE NUMBER,163904,0,Revenue,5081,Weightmans Llp,DA2 6SL,0
Balance Sheet,Balance Sheet,Balance Sheet,Insurance Account,VAT ONLY - PROFESSIONAL SERVICES,26/08/2022,REDACTED INVOICE NUMBER,163938,0,Revenue,5081,Weightmans Llp,DA2 6SL,0
Balance Sheet,Balance Sheet,Balance Sheet,Fuel Stores,FUEL,05/08/2022,REDACTED INVOICE NUMBER,163747,15992,Revenue,25187,Wessex Petroleum Ltd T/A Wp Group,SO15 2BE,0
Balance Sheet,Balance Sheet,Balance Sheet,Fuel Stores,FUEL,05/08/2022,REDACTED INVOICE NUMBER,163748,6480.44,Revenue,25187,Wessex Petroleum Ltd T/A Wp Group,SO15 2BE,0
Balance Sheet,Balance Sheet,Balance Sheet,Fuel Stores,DIESEL,19/08/2022,REDACTED INVOICE NUMBER,163382,15081.51,Revenue,25187,Wessex Petroleum Ltd T/A Wp Group,SO15 2BE,0
Director Of Environment,Street Services,Street Cleansing,Sub-Contractors,RECOVER BURNT VEHICLE,09/08/2022,REDACTED INVOICE NUMBER,163484,85,Revenue,5104,Whitehouse Recovery,CM14 5RP,0
Director Of Environment,Vehicle Fleet Management,Vehicle Fleet Management,Vehicle R&M - External,RECOVER VAN,09/08/2022,REDACTED INVOICE NUMBER,163483,95,Revenue,5104,Whitehouse Recovery,CM14 5RP,0
Director Digital & Customer En,Digital Servs & Transformation,Ict Services,Photocopier Charges,Service Agreement,30/08/2022,REDACTED INVOICE NUMBER,163993,1099.65,Revenue,5149,Xerox (Uk) Ltd,UB8 1HS,0
Director Digital & Customer En,Digital Servs & Transformation,Ict Services,Photocopier Charges,Service Agreement,30/08/2022,REDACTED INVOICE NUMBER,163992,76.84,Revenue,5149,Xerox (Uk) Ltd,UB8 1HS,0
Hra Expenditure,"Rents, Rates & Other Charges","Rents, Rates & Other Charges",Insurances - General Claims,PERSONAL INJURY CLAIM,16/08/2022,REDACTED INVOICE NUMBER,163816,500,Revenue,5169,Zurich Insurance Plc,PO15 7JZ,0
